{"text_format":"3","workbook":"xlsx","n_sheets":5,"sheets":["01_Version","02_Legende_Wegleitung","03_Fachmodelle@StZH","04_Arbeitspakete","Erläuterungen Spalten Farben"],"not_rendered":{"images":2,"defined_names":4},"read":"whole","date_system":"1900"}

{"sheet":"01_Version","index":0,"n_rows":23,"n_cols":10,"rows_kept":23}
["01_Version","Datum","Tabellenblatt","Anmerkung / Fehler / Verbesserungsvorschlag ","Email Spalte D","Änderung umgesetzt in Version","Datum","Email Spalte F","Versionsbezeichnung","Status "]
[{"v":0.1,"d":"0.10"},"2022-04-04","03_Fachmodelle@StZH","Ersterstellung abgeschlossen","tobias.joern@vbz.ch",{"v":0.6,"d":"0.60"},"2022-07-04","tobias.joern@vbz.ch","Entwurf Liste Fachmodelle@StZH","\"In Entwicklung\""]
[{"v":0.2,"d":"0.20"},"2022-04-14","03_Fachmodelle@StZH","Inputs TAZ eingefügt, gelb markiert","magdalena.stelzer@zuerich.ch",{"v":0.6,"d":"0.60"},"2022-07-04","tobias.joern@vbz.ch",null,"\"In Entwicklung\""]
[{"v":0.3,"d":"0.30"},"2022-04-22","03_Fachmodelle@StZH","TAZ angepasst, inkl. reminder für andere Fachmodelle","swinten.miozzari@zuerich.ch",{"v":0.6,"d":"0.60"},"2022-07-04","tobias.joern@vbz.ch",null,"\"In Entwicklung\""]
[{"v":0.4,"d":"0.40"},"2022-05-06","03_Fachmodelle@StZH","Anlagenbau Entwurf","michael.kirsch.wvz@zuerich.ch",{"v":0.6,"d":"0.60"},"2022-07-04","tobias.joern@vbz.ch",null,"\"In Entwicklung\""]
[{"v":0.5,"d":"0.50"},"2022-05-19","03_Fachmodelle@StZH","IMMO ergänzt","maja.berbat@zuerich.ch",{"v":0.6,"d":"0.60"},"2022-07-04","tobias.joern@vbz.ch",null,"\"In Entwicklung\""]
[{"v":0.6,"d":"0.60"},"2022-07-04","03_Fachmodelle@StZH","Eintragungen bereinigt - An Baukasten Projekt weitergeleitet ","tobias.joern@vbz.ch",{"v":0.7,"d":"0.70"},"2022-09-27","tobias.joern@vbz.ch",null,"\"In Entwicklung\""]
[{"v":0.8,"d":"0.80"},"2022-07-04","03_Fachmodelle@StZH","Überarbeitungen und Erkenntnisse aus Projekt 20177 eingearbeitet.","tobias.joern@vbz.ch",{"v":0.8,"d":"0.80"},"2022-11-14","tobias.joern@vbz.ch","Freigabe zur Erprobung","\"Zur Erprobung\""]
[{"v":0.9,"d":"0.90"},"2023-04-19","03_Fachmodelle@StZH","Einarbeitung TAZ (Anastasios Tsapanidis und Lars Zeindler), Reihenfolge Benennung und Namen gekürzt geändert.","anastasios.tsapanidis@zuerich.ch",{"v":0.9,"d":"0.90"},"2023-04-19","anastasios.tsapanidis@zuerich.ch",null,"\"In Entwicklung\""]
[{"v":0.9,"d":"0.90"},"2023-04-19","02_Legende_Wegleitung","Wegleitung an neue Reihenfolge angepasst","tobias.joern@vbz.ch",{"v":0.9,"d":"0.90"},"2023-04-19","tobias.joern@vbz.ch",null,"\"In Entwicklung\""]
[{"v":0.9,"d":"0.90"},"2023-04-25","03_Fachmodelle@StZH","Fachmodelle Strasse bereinigt, Fachmodelle Kunstbauten und Wasserbauwerke ergänzt, Fachmodelle Allgemein modifiziert","lars.zeindler@zuerich.ch",{"v":0.9,"d":"0.90"},"2023-04-25","lars.zeindler@zuerich.ch",null,"\"In Entwicklung\""]
[{"v":1,"d":"1.00"},"2023-04-26","03_Fachmodelle@StZH","Alle Anmerkungen bereinigt und Übergabe der Version 1.0 an die BIM Programmleitung zur Vernehmlassung und Freigabe","tobias.joern@vbz.ch",{"v":1,"d":"1.00"},"2023-04-26","tobias.joern@vbz.ch","Vernehmlassung Abschluss Stufe I","\"Zur Vernehmlassung\""]
[{"v":1,"d":"1.00"},"2023-05-08","03_Fachmodelle@StZH","Anmerkungen der Vernehmlassung umgesetzt","tobias.joern@vbz.ch",{"v":1,"d":"1.00"},"2023-04-26","tobias.joern@vbz.ch",null,"\"Publiziert-Zur Erprobung\""]
[{"v":1,"d":"1.00"},"2023-07-28","03_Fachmodelle@StZH","Fehlerkorrektur Allgemein und Strasse","lars.zeindler@zuerich.ch",{"v":1,"d":"1.00"},"2023-05-08","lars.zeindler@zuerich.ch",null,"\"Publiziert-Zur Erprobung\""]
[{"v":1.1,"d":"1.10"},"2023-08-25","03_Fachmodelle@StZH","Feedback aus Workshop einpflegen","anastasios.tsapanidis@zuerich.ch",{"v":1.1,"d":"1.10"},"2023-08-25"]
[{"v":1.1,"d":"1.10"},"2023-08-28","03_Fachmodelle@StZH","Matrix für DA's für Mehrfachauswahl und Freifeld-Anfügung eingeführt.","anastasios.tsapanidis@zuerich.ch",{"v":1.1,"d":"1.10"},"2023-08-28"]
[{"v":1.1,"d":"1.10"},"2023-09-12","03_Fachmodelle@StZH","Matrix Weitere Fachmodelle angelegt und Nummerrierung angepasst","anastasios.tsapanidis@zuerich.ch",{"v":1.1,"d":"1.10"}]
[{"v":1.1,"d":"1.10"},"2023-09-12","02_Legende_Wegleitung","Wegleitung angepasst, Kontaktmail angepasst","anastasios.tsapanidis@zuerich.ch",{"v":1.1,"d":"1.10"}]
[{"v":1.1,"d":"1.10"},"2023-09-12","03_Fachmodelle@StZH","Der Arbeitsstand 12.09.2023 geht in die Vernehmlassung (2023-09-12_BIM@StZH_Liste_Fachmodelle_Stufe1_v1.10)","anastasios.tsapanidis@zuerich.ch",{"v":1.1,"d":"1.10"},{"$nulls":3},"\"Zur Vernehmlassung\""]
[{"v":1.1,"d":"1.10"},"2023-09-25","03_Fachmodelle@StZH","Fachmodel wurde, auf Wunsch der IMMO, erweitert mit der Position: 1031 - Parklatz innen","anastasios.tsapanidis@zuerich.ch",{"v":1.1,"d":"1.10"}]
[1.11,"2023-09-26","04_Arbeitspakete@StZH","Erstellung Matrix für Arbeitspakete ","anastasios.tsapanidis@zuerich.ch",1.11]
[1.11,"2023-09-26","02_Legende_Wegleitung","Anpassung der Fachmodellnamens mit Unterstrichen und Bindestrichen","anastasios.tsapanidis@zuerich.ch",1.11]
["1.1.2","2024-03-12","03_Fachmodelle@StZH","Versionzeile eingeführt. Fachmodelle auf wunsch von AHB erweitert. BSEI-Baustelleneinrichtung. Fachmodelle erweitert. BGRB-Baugrubenmodell. Versionsnummer auf 3-Stellen angepasst. \"-\" aus der Spalte \"Fachmodell-Kürzel\" entfernt.","anastasios.tsapanidis@zuerich.ch","1.1.2"]

{"sheet":"02_Legende_Wegleitung","index":1,"n_rows":20,"n_cols":8,"rows_kept":20}
[null,"02_Legende_Wegleitung"]
[]
[null,"Das Dokument dient zur grundlegenden Strutkur welche Fachmodelle in einem Projekt bestellt und benannt werden sollen."]
[null,"Für Anregungen/Ergänzungen bitte an die Leitung der AG Standards per E-Mail wenden: ",{"$nulls":5},"3 STANDARDS - BIM_StZH"]
[]
[null,"Der Status (Tabelle 01_Version) gibt an in welchem Zustand sich dieses Dokument befindet:"]
[null,"\"In Entwicklung\"","In Entwicklung und wird editiert von der AG Standards."]
[null,"\"In Vernehmlassung\"","Stand ist in Vernehmlassung in der BIM Programmleitung."]
[null,"\"Publiziert - Zur Erprobung\"","Zur Verwendung in BIM Projekten freigegebene Dokumente für die Intranet und Extranet Seite BIM@StZH."]
[]
[null,"Gleichzeitig gibt das Dokument die Dateinamenskonvention für die Fachmodelle mit den Spalten wie folgt exemplarisch vor:"]
[null,"Mit \"*Dateiname\" gekennzeichnet."]
[]
[null,"Fachmodellkürzel","Best./Proj./Abbr./Temp.","Phase","DA","Projektnr.","Freifeld*",".Dateiformat"]
[null,"WLK-WASS_","B_","31_","WVZ_","123456_","XXX",".ifc"]
[null,"Das obige Fachmodell Werkleitung Wasser im Bestand, gehört der Wasserversorgung Zürich und liegt im .ifc Format vor."]
[null,"* Nur bei ausgewählten DA's steht eine Freifeld zur Verfügung"]
[]
[null,"Weitere Hinweise: "]
[null,"Zu den Dokument und Modell-Status in Projekten: Diese Status sind im BEP vom Auftragnehmer gemäss ISO19650-1 (s. folgendem Bild) zu regeln. "]

{"sheet":"03_Fachmodelle@StZH","index":2,"n_rows":265,"n_cols":25,"rows_kept":265}
["Version","1.1.2","(Siehe Version Historie)"]
["Bauwerks Domäne","Fachmodellnr.","Domäne-Kürzel","Fachmodell-Kürzel","Funktionsgruppe\nBest (B-) Proj (P-) Abbr (A-) Temp (T-)","Ab Phase (11-31-ff.)","Dienstabteilung TAZ","Dienstabteilung VBZ","Dienstabteilung WVZ","Dienstabteilung ERZ","Dienstabteilung EWZ","Dienstabteilung e360","Dienstabteilung AHB","Dienstabteilung AfS","Dienstabteilung DAV","Dienstabteilung GSZ","Dienstabteilung IMMO (G-Nummer, AKS)","Dienstabteilung GeoZ","Freifeld öffnen. (XXXXX)","Projektnr. (XXXXX)","Fachmodellname","Fachmodellbeschrieb","Datenquellen","Phase","Beispieldatei im Baukasten"]
[null,null,"*Dateiname","*Dateiname","*Dateiname","*Dateiname","*Dateiname","*Dateiname","*Dateiname","*Dateiname","*Dateiname","*Dateiname","*Dateiname","*Dateiname","*Dateiname","*Dateiname","*Dateiname","*Dateiname","*Dateiname","*Dateiname"]
["Allgemein ","0000","ALG-","KOOM",{"$nulls":14},{"$f":"IF(OR($I4=\"X\", $M4=\"X\", $Q4=\"X\"), \"X\", \"\")","v":""},null,"Allgemeines Koordinationsmodell","Modell welches allen Fachmodellen als Basis für die eindeutige referenzierung gilt. Hier ist der oder die 0 Punkte sowie die zugehörigen übergeordneten Metadaten und Merkmalen zum Projekt. Georeferenzierung nach LV95."]
["Allgemein","0001","ALG-","LOGI",null,null,"X","X",{"$nulls":4},"X",{"$nulls":5},"X",null,"Logistikmodell","Modell für den Bauablauf und die zugehörige Logistik"]
["Allgemein","0002","ALG-","GELM",{"$nulls":13},"X","",null,"Digitales Geländemodell","Modell der Topographie inkl Katastermodell mit georeferenziertem Fixpunkt(netz)","Planung"]
["Allgemein","0003","ALG-","BAGR",{"$nulls":13},"X","",null,"Baugrundmodell","Modelle des Baugrundkatasters","GIS-Export / Scanmodell"]
["Allgemein","0004","ALG-","SCAN",{"$nulls":13},"X","",null,"Scanmodelle","Punktwolken","GIS-Export"]
["Allgemein","0005","ALG-","UMGB",{"$nulls":14},"",null,"Umgebung","Beinhaltet Informationen zur Beschreibung der Umgebung von Liegenschaften. Z.B. aus 4D-Stadtmodell, sowie sämtliche für das Projekt relevanten Elemente auf dem angrenzenden Privatgrund (Bäume, Sträucher, Briefkästen, Abstellplätze etc)."]
["Allgemein","0006","ALG-","BAUM",{"$nulls":11},"X",null,null,"",null,"Bäume","Bäume in Grünanlagen.","GIS-Export"]
["Allgemein","0007","ALG-","UMLB",{"$nulls":14},"",null,"Umweltmodell-Lärmbelastung"]
["Allgemein","0008","ALG-","UMBB",{"$nulls":14},"",null,"Umweltmodell-Bodenbelastung"]
["Allgemein","0009","ALG-","RAST",{"$nulls":14},"",null,"Raster"]
["Allgemein","0010","ALG-","BAUL",{"$nulls":13},"X","",null,"Baulinie / Interessenlinien"]
["Allgemein ","0011","ALG-","BELS",{"$nulls":13},"X","",null,"Kataster der belasteten Standorte"]
["Allgemein ","0012","ALG-","KATR",{"$nulls":13},"X","",null,"Grundstücksgrenzen"]
["Allgemein ","0013","ALG-","OBGW",{"$nulls":13},"X",{"$f":"IF(OR($I17=\"X\", $M17=\"X\", $Q17=\"X\"), \"X\", \"\")","v":""},null,"Oberflächengewässer"]
["Allgemein ","0014","ALG-","SWGA",{"$nulls":11},"X",null,null,"",null,"Schützenswerte Gärten und Anlagen"]
["Allgemein ","0015","ALG-","NALS",{"$nulls":11},"X",null,null,"",null,"Natur und Landschaftsschutz"]
["Allgemein ","0016","ALG-","AMPH",{"$nulls":11},"X",null,null,"",null,"Amphibienschwerpunktzonen "]
["Allgemein ","0017","ALG-","DENK",{"$nulls":9},"X",{"$nulls":4},"",null,"Denkmalpflege"]
["Allgemein ","0018","ALG-","ARLG",{"$nulls":9},"X",{"$nulls":4},"",null,"Archäologie"]
["Allgemein ","0019","ALG-","TIBL",{"$nulls":14},"",null,"Titelblatt / Blianzen / Legenden"]
["Allgemein ","0020","ALG-","LAGP",{"$nulls":13},"X","",null,"Lagefix- und Einfügepunkte","Lagefixpunkte mit Einfügepyramide und Bezug zu LV95 Koordinaten"]
["Allgemein ","0021","ALG-","PERI",{"$nulls":14},"",null,"Baubereich / Bauperimeter","Hüllkörper der Baumassnahme zur jeweiligen Etappierung (Bauphasenplanung)"]
["Allgemein ","0022","ALG-","BSEI",null,null,"X","X",{"$nulls":4},"X",{"$nulls":7},"Baustelleneinrichung"]
["Allgemein ","0023","ALG-","BGRB",null,null,"X","X",{"$nulls":4},"X",{"$nulls":7},"Baugrubenmodell"]
[{"$nulls":18},""]
["Hochbau","1000","HOH-","KOOM",{"$nulls":8},"X",{"$nulls":3},"X",null,"X",null,"Hochbau Koordinationsmodell","Hochbau Koordinationsmodell"]
["Hochbau","1001","HOH-","ARCH",{"$nulls":6},"X",null,"X",{"$nulls":3},"X",null,{"$f":"IF(OR($I30=\"X\", $M30=\"X\", $Q30=\"X\"), \"X\", \"\")","v":"X"},null,"Architektur","Informationen zur Beschreibung der Architektur von Liegenschaften "]
["Hochbau","1002","HOH-","INGB",{"$nulls":8},"X",{"$nulls":3},"X",null,{"$f":"IF(OR($I31=\"X\", $M31=\"X\", $Q31=\"X\"), \"X\", \"\")","v":"X"},null,"Ingenieurbau"]
["Hochbau","1003","HOH-","TRWK",{"$nulls":6},"X",null,"X",{"$nulls":3},"X",null,"X",null,"Tragwerk"]
["Hochbau","1004","HOH-","AUSS",{"$nulls":6},"X",null,"X",{"$nulls":3},"X",null,"X",null,"Aussparungen"]
["Hochbau","1005","HOH-","SPZN",{"$nulls":6},"X",null,"X",{"$nulls":3},"X",null,"X",null,"Sperrzonen"]
["Hochbau","1006","HOH-","BEWE",{"$nulls":8},"X",{"$nulls":3},"X",null,"X",null,"Bewehrung"]
["Hochbau","1007","HOH-","EIBT",{"$nulls":6},"X",null,"X",{"$nulls":3},"X",null,"X",null,"Einbauteile"]
["Hochbau","1008","HOH-","FASS",{"$nulls":8},"X",{"$nulls":3},"X",null,"X",null,"Fassade"]
["Hochbau","1009","HOH-","RAUM",{"$nulls":6},"X",null,"X",{"$nulls":3},"X",null,"X",null,"Räume"]
["Hochbau","1010","HOH-","BRAN",{"$nulls":8},"X",{"$nulls":3},"X",null,"X",null,"Brandschutz","Informationen zur Beschreibung des baulichen Brandschutzes von Liegenschaften, Brandschott"]
["Hochbau","1011","HOH-","AUST",{"$nulls":6},"X",null,"X",{"$nulls":3},"X",null,"X",null,"Ausstattung","Informationen zur Beschreibung der Ausstattung von Liegenschaften"]
["Hochbau","1012","HOH-","AKUS",{"$nulls":8},"X",{"$nulls":3},"X",null,"X",null,"Akustik"]
["Hochbau","1013","HOH-","BAPH",{"$nulls":8},"X",{"$nulls":3},"X",null,"X",null,"Bauphysik"]
["Hochbau","1014","HOH-","LUFT",{"$nulls":6},"X",null,"X",{"$nulls":3},"X",null,{"$f":"IF(OR($I43=\"X\", $M43=\"X\", $Q43=\"X\"), \"X\", \"\")","v":"X"},null,"Lüftung","Informationen zur Beschreibung der Lüftungstechnik von Liegenschaften"]
["Hochbau","1015","HOH-","HEIZ",{"$nulls":6},"X",null,"X",{"$nulls":3},"X",null,"X",null,"Heizung","Informationen zur Beschreibung der Heizungstechnik von Liegenschaften"]
["Hochbau","1016","HOH-","KLTE",{"$nulls":6},"X",null,"X",{"$nulls":3},"X",null,"X",null,"Kälte","Informationen zur Beschreibung der Kältetechnik von Liegenschaften"]
["Hochbau","1017","HOH-","SANI",{"$nulls":6},"X",null,"X",{"$nulls":3},"X",null,"X",null,"Sanitär","Informationen zur Beschreibung der Sanitärtechnik von Liegenschaften"]
["Hochbau","1018","HOH-","ENER",{"$nulls":8},"X",{"$nulls":3},"X",null,"X",null,"Energie"]
["Hochbau","1019","HOH-","ELEK",{"$nulls":6},"X",null,"X",{"$nulls":3},"X",null,"X",null,"Elektro","Informationen zur Beschreibung der Elektrotechnik von Liegenschaften"]
["Hochbau","1020","HOH-","TELE",{"$nulls":8},"X",{"$nulls":3},"X",null,"X",null,"Telekommunikation"]
["Hochbau","1021","HOH-","GEBA",{"$nulls":8},"X",{"$nulls":3},"X",null,"X",null,"Gebäudeautomation"]
["Hochbau","1022","HOH-","GASV",{"$nulls":8},"X",{"$nulls":3},"X",null,"X",null,"Gasversorgung"]
["Hochbau","1023","HOH-","LPLN",{"$nulls":8},"X",{"$nulls":3},"X",null,"X",null,"Lichtplanung"]
["Hochbau","1024","HOH-","SGLK",{"$nulls":8},"X",{"$nulls":3},"X",null,"X",null,"Signaletik"]
["Hochbau","1025","HOH-","STAT",{"$nulls":8},"X",{"$nulls":3},"X",null,{"$f":"IF(OR($I54=\"X\", $M54=\"X\", $Q54=\"X\"), \"X\", \"\")","v":"X"},null,"Statik","Informationen zur Beschreibung der Statik von Liegenschaften"]
["Hochbau","1026","HOH-","TRAN",{"$nulls":8},"X",{"$nulls":3},"X",null,{"$f":"IF(OR($I55=\"X\", $M55=\"X\", $Q55=\"X\"), \"X\", \"\")","v":"X"},null,"Transport","Informationen zur Beschreibung der Transportanlagen (Aufzüge, Hebebühnen, Rolltreppen,...) von Liegenschaften"]
["Hochbau","1027","HOH-","UMGB",{"$nulls":8},"X",{"$nulls":3},"X",null,{"$f":"IF(OR($I56=\"X\", $M56=\"X\", $Q56=\"X\"), \"X\", \"\")","v":"X"},null,"Umgebung","Grünflächen, Erschliessung, Sportanlagen, Parkplätze., etc."]
["Hochbau","1028","HOH-","BEPL",{"$nulls":8},"X",{"$nulls":3},"X",null,"X",null,"Bewirtschaftungspläne","Informationen für den Betrieb von Liegenschaften "]
["Hochbau","1029","HOH-","VOLS",{"$nulls":8},"X",{"$nulls":3},"X",null,"X",null,"Volumenmodell nach SIA416"]
["Hochbau","1030","HOH-","MEDT",{"$nulls":8},"X",{"$nulls":3},"X",null,"X",null,"Medizintechnik"]
["Hochbau","1031","HOH-","PAPL",{"$nulls":8},"X",{"$nulls":3},"X",null,"X",null,"Parkplatz innen","Raummodell"]
[{"$nulls":18},""]
["Mobiler öffentlicher Verkehr","2000","MOV-","KOOM",{"$nulls":3},"X",{"$nulls":10},"",null,"Mobiler öffentlicher Verkehr Koordinationsmodell","Mobiler öffentlicher Verkehr Koordinationsmodell"]
["Mobiler öffentlicher Verkehr","2001","MOV-","LINF",{"$nulls":3},"X",{"$nulls":10},"",null,"Linienführung/Trassierung","Fachmodell welches die öV-Linien im Projektperimeter darstellen. Insbesondere für Umleitungen in den Bauphasen nützlich aber auch betreffend Gefässgrösse usw.."]
["Mobiler öffentlicher Verkehr","2002","MOV-","FAHB",{"$nulls":3},"X",{"$nulls":10},"",null,"Fahrbahn/Gleistrassee ","Gleisbereich inkl. Fundamentkoffer, Unter- und Oberbeton (inkl. Fahrschiene,Weichen und Schmieranlagen)"]
["Mobiler öffentlicher Verkehr","2003","MOV-","SCHL",{"$nulls":3},"X",{"$nulls":10},"",null,"Schleppkurve/Lichtraumprofil Bus","Platzbedarf Bus inkl. Bewegungsspielraum"]
["Mobiler öffentlicher Verkehr","2004","MOV-","LRPF",{"$nulls":3},"X",{"$nulls":10},"",null,"Lichtraumprofil Tram","Platzbedarf Tram gemäss Eisenbahnverordnung"]
["Mobiler öffentlicher Verkehr","2005","MOV-","FAST",{"$nulls":3},"X",{"$nulls":10},"",null,"Fahrstrom und Masten (inkl. Fundamente)","Elemente der Tram und Trolleybusfahrleitung inkl. Masten und Mauerbolzen im Eigentum VBZ. Masten im Eigentum ewz sind zwingend im Fachmodell \"Öffentliche Beleuchtung\" der ewz abzubilden."]
["Mobiler öffentlicher Verkehr",2006,"MOV-","SICH",{"$nulls":3},"X",{"$nulls":10},"",null,"Bahnsicherungsanlagen","Modell zur vollständigen Bahnsicherungsanlage (z.B. Tramtunnel)"]
["Mobiler öffentlicher Verkehr","2007","MOV-","HALT",{"$nulls":3},"X",{"$nulls":10},"",null,"Haltestellenausrüstung","Haltestellenmöbellierung inkl. Wartehallen (inkl. Fundamente)"]
["Mobiler öffentlicher Verkehr","2008","MOV-","BEHI",{"$nulls":3},"X",{"$nulls":12},"Behindertengerechteplanung","Freihalte- und Durchgangsflächen für Behindertengerechte Planung"]
["Mobiler öffentlicher Verkehr","2009","MOV-","ANNO",{"$nulls":3},"X",{"$nulls":12},"Annotations- und Beschriftungsmodell"]
[]
["Tunnel","3000","TUN-","KOOM",{"$nulls":3},"X",{"$nulls":10},"",null,"Tunnel Koordinationsmodell","Tunnel Koordinationsmodell"]
["Tunnel","3001","TUN-","ARCH",{"$nulls":3},"X",{"$nulls":10},"",null,"Architektur","Beschrieb von Architektonischen Anlagebauteilen, z.B. Haltestellenaufgänge, Bahnhöfe"]
["Tunnel","3002","TUN-","TRWK",null,null,"X","X",{"$nulls":10},"",null,"Tragwerk & Ingenieurbau","Fachmodell für Ingenieurbau (eigentliches Tunnelbauwerk)"]
["Tunnel","3003","TUN-","AUSS",null,null,"X","X",{"$nulls":10},"",null,"Aussparungen","Fachmodell für Ausparungen im Architektur und Ingenieurbau"]
["Tunnel","3004","TUN-","SPZN",null,null,"X","X",{"$nulls":10},"",null,"Sperrzonen","Fachmodell für Sperrzonen im Tunnel Architektur und Ingenieurbaumodell"]
["Tunnel","3005","TUN-","BEWE",null,null,"X","X",{"$nulls":10},"",null,"Bewehrung","Bewehrungsmodelle"]
["Tunnel","3006","TUN-","EIBT",null,null,"X","X",{"$nulls":10},"",null,"Einbauteile","Fachmodell spezifischer Einbauteile "]
["Tunnel","3007","TUN-","FASS",null,null,"X","X",{"$nulls":10},"",null,"Fassade","Fassadenmodelle von Aufgängen und Bahnhöfen"]
["Tunnel","3008","TUN-","RAUM",null,null,"X","X",{"$nulls":10},"",null,"Räume","Raummodelle von Tunnelbauwerken"]
["Tunnel","3009","TUN-","BRAN",null,null,"X","X",{"$nulls":10},"",null,"Brandschutz","Brandschutzmodell von Tunnelbauwerken"]
["Tunnel","3010","TUN-","AUST",null,null,"X","X",{"$nulls":10},"",null,"Ausstattung & Möblierung","Ausstattungsmodelle inkl. Haltestellenaustattung von Tunnelbauwerken"]
["Tunnel","3011","TUN-","AKUS",null,null,"X","X",{"$nulls":10},"",null,"Akustik","Akustikmodelle"]
["Tunnel","3012","TUN-","BAPH",null,null,"X","X",{"$nulls":10},"",null,"Bauphysik","Bauphysikmodelle von Tunnelbauwerken"]
["Tunnel","3013","TUN-","LUFT",null,null,"X","X",{"$nulls":10},"",null,"Lüftung","Lüftungsmodelle von Tunnelbauwerken"]
["Tunnel","3014","TUN-","HEIZ",{"$nulls":3},"X",{"$nulls":10},"",null,"Heizung","Heizungsbauwerke von Tunnelbauwerken"]
["Tunnel","3015","TUN-","KLTE",{"$nulls":3},"X",{"$nulls":10},"",null,"Kühlung","Kühlanlagen von Tunnelbauwerken"]
["Tunnel","3016","TUN-","SANI",null,null,"X","X",{"$nulls":10},"",null,"Sanitär","Sanitäranlagen von Tunnelbauwerken"]
["Tunnel","3017","TUN-","ENER",null,null,"X",{"$nulls":11},"",null,"Energie","Energetische Anlagen von Tunnelbauwerken"]
["Tunnel","3018","TUN-","ELEK",null,null,"X",{"$nulls":11},"",null,"Elektro","Elektrische Anolagen in Tunnelbauwerken"]
["Tunnel","3019","TUN-","TELE",null,null,"X",{"$nulls":11},"",null,"Telekommunikation","Anlagen der Telekommunikation"]
["Tunnel","3020","TUN-","GEBA",null,null,"X",{"$nulls":11},"",null,"Gebäudeautomation","Anlagen der Gebäudeautomation"]
["Tunnel","3021","TUN-","GASV",{"$nulls":7},"X",{"$nulls":6},"",null,"Gasversorgung","Gasleitungen und Anlagentechnik in Tunnelbauwerken"]
["Tunnel","3022","TUN-","LPLN",null,null,"X",{"$nulls":11},"",null,"Lichtplanung","Lichtplanung für Tunnelbauwerke und Haltestellen"]
["Tunnel","3023","TUN-","SGLK",null,null,"X","X",{"$nulls":10},"",null,"Siganletik","Signaletikmodelle von Tunnelbauwerken insb. in Haltestellen udn Aufgängen"]
["Tunnel","3024","TUN-","ANNO",{"$nulls":3},"X",{"$nulls":12},"Annotations- und Beschriftungsmodell"]
[{"$nulls":18},""]
["Strasse","4000","STR-","KOOM",null,null,"X",{"$nulls":11},{"$f":"IF(OR($I99=\"X\", $M99=\"X\", $Q99=\"X\"), \"X\", \"\")","v":""},null,"Strassen Koordinationsmodell","Strassen Koordinationsmodell"]
["Strasse",4001,"STR-","ABSL"," "," ","X",{"$nulls":11},""," ","Abschlüsse ","Beinhaltet sämtliche Abschlüsse (RN, BN, SN, Zürich-Bord). Vgl. TED-Norm 16.21 bis 16.87."]
["Strasse",4002,"STR-","GEHW"," "," ","X",{"$nulls":11},""," ","Gehweg / Begegnungszone","Beinhaltet Asphaltschichten, Fundation, Chaussierung, Pflästerung etc. der Gehwege."]
["Strasse",4003,"STR-","FAHR"," "," ","X",{"$nulls":11},""," ","Fahrbahn ","Beinhaltet Asphaltschichten, Fundation, Pflästerungen, Bushaltestelle, Parkplätze etc."]
["Strasse",4004,"STR-","VELO"," "," ","X",{"$nulls":11},""," ","Veloweg","Beinhaltet Asphaltschichten und Fundation des Velowegs."]
["Strasse",4005,"STR-","ENTW"," "," ","X",{"$nulls":11},""," ","Strassenentwässerung","Beinhaltet SA und SA-Ableitungen sowie deren Schadstellen."]
["Strasse",4006,"STR-","BASH"," "," ","X",{"$nulls":11},""," ","Baumschutzsystem","Beinhaltet Baumscheibenschutz, Stammschutz, Abdeckung, Fundamentrahmen, Stahlbänder und Betonrohre der Baumschutzsysteme."]
["Strasse",4007,"STR-","AUST"," "," ","X",{"$nulls":11},""," ","Ausstattung & Möblierung","Bänke, Pfosten, Papierkorb, etc."]
["Strasse",4008,"STR-","MAUR"," "," ","X",{"$nulls":11},""," ","Mauern / Zäune / Geländer","Auf öffentlichen Grund."]
["Strasse",4009,"STR-","KUNS"," "," ","X",{"$nulls":11},""," ","Kunst im Stadtraum","KiöR."]
["Strasse",4010,"STR-","BESR"," "," ","X",{"$nulls":11},""," ","Beschriftung","P-weiss, P-blau, PP, Strassennamen, Hausnummern, Richtplaneinträge, ATR etc."]
["Strasse",4011,"STR-","ERSL"," "," ","X",{"$nulls":11},""," ","Erschliessung","Beinhaltet Hauszugänge und Zufahrten."]
["Strasse",4012,"STR-","KONZ"," "," ","X",{"$nulls":11},""," ","Konzessionen","Unterirdische und oberirdische Beanspruchungen."]
["Strasse",4013,"STR-","SKUR"," "," ","X",{"$nulls":11},""," ","Schleppkurven"]
["Strasse",4014,"STR-","RERW"," "," ","X",{"$nulls":11},""," ","Rechtserwerb","Landerwerb, Dienstbarkeit, Grundeigentümer"]
["Strasse",4015,"STR-","BAUM",null,null,"X",{"$nulls":8},"X",null,null,"",null,"Bäume","Bäume im Strassenraum"]
["Strasse",4016,"STR-","SIGN",{"$nulls":10},"X",{"$nulls":3},"",null,"Beschilderung/Signalisation/Leitanlagen"]
["Strasse",4017,"STR-","VSAL",{"$nulls":10},"X",{"$nulls":3},"",null,"Verkehrssteuerungsanlagen / Lichtsignalanlagen"]
["Strasse",4018,"STR-","BELU",{"$nulls":6},"X",{"$nulls":7},"",null,"Strasse Beleuchtung inkl. Masten"]
["Strasse",4019,"STR-","MARK",{"$nulls":10},"X",{"$nulls":5},"Markierungen Bodenoberfläche","Zebrastreifen, Symbole, Verkehrspfeile, etc."]
[{"$nulls":18},""]
["Anlagenbau","7000","ANL-","KOOM",{"$nulls":14},"",null,"Anlagenmodell Koordinationsmodell","Anlagenmodell Koordinationsmodell"]
["Anlagenbau","7001","ANL-","ARCH",{"$nulls":14},"",null,"Architektur","Gebäude komplett inkl. Fassade"]
["Anlagenbau","7002","ANL-","INGB",{"$nulls":14},"",null,"Ingenieurbau","Baugruben"]
["Anlagenbau","7003","ANL-","TRWK",{"$nulls":14},"",null,"Tragwerk","Tragstrukturen Gebäude"]
["Anlagenbau","7004","ANL-","AUSS",{"$nulls":14},"",null,"Aussparungen"]
["Anlagenbau","7005","ANL-","SPZN",{"$nulls":14},"",null,"Sperrzonen","Ingenieurbau"]
["Anlagenbau","7006","ANL-","EIBT",{"$nulls":14},"",null,"Einbauteile"]
["Anlagenbau","7007","ANL-","RAUM",{"$nulls":14},"",null,"Räume"]
["Anlagenbau","7008","ANL-","BRAN",{"$nulls":14},"",null,"Brandschutz"]
["Anlagenbau","7009","ANL-","AUST",{"$nulls":14},"",null,"Ausstattung","Möblierung"]
["Anlagenbau","7010","ANL-","AKUS",{"$nulls":14},"",null,"Akustik"]
["Anlagenbau","7011","ANL-","BAPH",{"$nulls":14},"",null,"Bauphysik"]
["Anlagenbau","7012","ANL-","VRTK",{"$nulls":14},"",null,"Verfahrenstechnik","Alle möglichen Aggregate / Aktoren, Prozessverrohrung, Armaturen, Behälter"]
["Anlagenbau","7013","ANL-","LUFT",{"$nulls":14},"",null,"Lüftung"]
["Anlagenbau","7014","ANL-","HEIZ",{"$nulls":14},"",null,"Heizung"]
["Anlagenbau","7015","ANL-","KUHL",{"$nulls":14},"",null,"Kühlung"]
["Anlagenbau","7016","ANL-","SANI",{"$nulls":14},"",null,"Sanitär"]
["Anlagenbau","7017","ANL-","GASV",{"$nulls":14},"",null,"Gasversorgung"]
["Anlagenbau","7018","ANL-","ENER",{"$nulls":14},"",null,"Energie","Energieversorgung, Hoch- und Mittelspannung"]
["Anlagenbau","7019","ANL-","ELEK",{"$nulls":14},"",null,"Elektro","Energieverteilung, Niederspannung, Verbraucher"]
["Anlagenbau","7020","ANL-","TELE",{"$nulls":14},"",null,"Telekommunikation"]
["Anlagenbau","7021","ANL-","PLTK",{"$nulls":14},"",null,"Prozessleittechnik"]
["Anlagenbau","7022","ANL-","MEST",{"$nulls":14},"",null,"Messtechnik","Sensorik, Analytik, Messwertumformung, Signalübertragung"]
["Anlagenbau","7023","ANL-","CHEM",{"$nulls":14},"",null,"Chemie"]
["Anlagenbau","7024","ANL-","DMPF",{"$nulls":14},"",null,"Dampf"]
["Anlagenbau","7025","ANL-","KKSN",{"$nulls":5},"X",{"$nulls":8},"",null,"Kraftwerk-Kennzeichensystem","Verfahrenstechnische-/Einbauort-/ und Aufstellungsort-Kennzeichnungen nach vorg. K-Schlüssel"]
["Anlagenbau","7026","ANL-","AKSN",{"$nulls":5},"X",{"$nulls":8},"",null,"Anlagen-Kennzeichnungssystem","Zuordnung und Nachvollziehbarkeit aller eingebauten betriebs- und wartungsrelevanten Komponente"]
[{"$nulls":18},""]
["Kunstbauten","8000","KUB-","KOOM",null,null,"X",{"$nulls":11},{"$f":"IF(OR($I148=\"X\", $M148=\"X\", $Q148=\"X\"), \"X\", \"\")","v":""},null,"Kunstbauten Koordinationsmodell","Kunstbauten Koordinationsmodell"]
["Kunstbauten",8001,"KUB-","LARS"," "," ","X",{"$nulls":11},""," ","Lärmschutzwand"]
["Kunstbauten",8003,"KUB-","DURL"," "," ","X",{"$nulls":11},""," ","Durchlass"]
["Kunstbauten",8004,"KUB-","ENAN"," "," ","X",{"$nulls":11},""," ","Entwässerungsanlage"]
["Kunstbauten",8005,"KUB-","SPZL"," "," ","X",{"$nulls":11},""," ","Spezialobjekte"]
[]
["Stützmauer","8100","STM-","KOOM",null,null,"X",{"$nulls":11},{"$f":"IF(OR($I154=\"X\", $M154=\"X\", $Q154=\"X\"), \"X\", \"\")","v":""},null,"Stützmauer Koordinationsmodell","Stützmauer Koordinationsmodell"]
["Stützmauer","8101","STM-","BEWE",null,null,"X",{"$nulls":11},{"$f":"IF(OR($I155=\"X\", $M155=\"X\", $Q155=\"X\"), \"X\", \"\")","v":""},null,"Bewehrung"]
["Stützmauer","8102","STM-","AUSR",null,null,"X",{"$nulls":13},"Ausrüstung"]
["Stützmauer","8103","STM-","SCHA",{"$nulls":16},"Schalung"]
["Stützmauer","8104","STM-","HILF",null,null,"X",{"$nulls":13},"Hilfskonstruktionen"]
[]
["Unterführung","8200","UNT-","KOOM",null,null,"X",{"$nulls":11},{"$f":"IF(OR($I160=\"X\", $M160=\"X\", $Q160=\"X\"), \"X\", \"\")","v":""},null,"Unterführung Koordinationsmodell","Unterführung Koordinationsmodell"]
["Unterführung","8201","UNT-","BEWE",null,null,"X",{"$nulls":11},{"$f":"IF(OR($I161=\"X\", $M161=\"X\", $Q161=\"X\"), \"X\", \"\")","v":""},null,"Bewehrung"]
["Unterführung","8202","UNT-","AUSR",null,null,"X",{"$nulls":13},"Ausrüstung"]
["Unterführung","8203","UNT-","SCHA",{"$nulls":16},"Schalung"]
["Unterführung","8204","UNT-","HILF",null,null,"X",{"$nulls":13},"Hilfskonstruktionen"]
[]
["Stege und Fussgängerüberführung","8300","FUB-","KOOM",null,null,"X",{"$nulls":11},{"$f":"IF(OR($I166=\"X\", $M166=\"X\", $Q166=\"X\"), \"X\", \"\")","v":""},null,"Stege und Fussgängerüberführung Koordinationsmodell","Stege und Fussgängerüberführung Koordinationsmodell"]
["Stege und Fussgängerüberführung","8301","FUB-","BEWE",null,null,"X",{"$nulls":11},{"$f":"IF(OR($I167=\"X\", $M167=\"X\", $Q167=\"X\"), \"X\", \"\")","v":""},null,"Bewehrung"]
["Stege und Fussgängerüberführung","8302","FUB-","AUSR",null,null,"X",{"$nulls":13},"Ausrüstung"]
["Stege und Fussgängerüberführung","8303","FUB-","SCHA",{"$nulls":16},"Schalung"]
["Stege und Fussgängerüberführung","8304","FUB-","HILF",null,null,"X",{"$nulls":13},"Hilfskonstruktionen"]
[]
["Brücke",8400,"BRU-","KOOM",null,null,"X",{"$nulls":11},{"$f":"IF(OR($I172=\"X\", $M172=\"X\", $Q172=\"X\"), \"X\", \"\")","v":""},null,"Brücken Koordinationsmodell","Brücken Koordinationsmodell"]
["Brücke",8401,"BRU-","TRWO",null,null,"X",{"$nulls":11},{"$f":"IF(OR($I173=\"X\", $M173=\"X\", $Q173=\"X\"), \"X\", \"\")","v":""},null,"Tragwerk Überbau"]
["Brücke",8402,"BRU-","TRWU",null,null,"X",{"$nulls":13},"Tragwerk Unterbau"]
["Brücke",8403,"BRU-","VORS",null,null,"X",{"$nulls":13},"Vorspannung"]
["Brücke",8404,"BRU-","BEWE",null,null,"X",{"$nulls":11},{"$f":"IF(OR($I176=\"X\", $M176=\"X\", $Q176=\"X\"), \"X\", \"\")","v":""},null,"Bewehrung"]
["Brücke",8405,"BRU-","AUSR",null,null,"X",{"$nulls":13},"Ausrüstung"]
["Brücke",8406,"BRU-","SCHA",{"$nulls":16},"Schalung"]
["Brücke",8407,"BRU-","HILF",null,null,"X",{"$nulls":13},"Hilfskonstruktionen"]
[{"$nulls":18},{"$f":"IF(OR($I180=\"X\", $M180=\"X\", $Q180=\"X\"), \"X\", \"\")","v":""}]
["Wasserbauwerke",8500,"WAS-","KOOM",null,null,"X",{"$nulls":11},{"$f":"IF(OR($I181=\"X\", $M181=\"X\", $Q181=\"X\"), \"X\", \"\")","v":""},null,"Wasserbauwerke Koordinationsmodell","Wasserbauwerke Koordinationsmodell"]
["Wasserbauwerke",8501,"WAS-","UFBA"," "," ","X",{"$nulls":11},{"$f":"IF(OR($I182=\"X\", $M182=\"X\", $Q182=\"X\"), \"X\", \"\")","v":""}," ","Uferbauten"]
["Wasserbauwerke",8502,"WAS-","DURL"," "," ","X",{"$nulls":11},{"$f":"IF(OR($I183=\"X\", $M183=\"X\", $Q183=\"X\"), \"X\", \"\")","v":""}," ","Durchlässe"]
[{"$nulls":18},{"$f":"IF(OR($I184=\"X\", $M184=\"X\", $Q184=\"X\"), \"X\", \"\")","v":""}]
["Werkleitungen","9000","WLK-","KOOM",{"$nulls":14},{"$f":"IF(OR($I185=\"X\", $M185=\"X\", $Q185=\"X\"), \"X\", \"\")","v":""},null,"Werkleitung Koordinationsmodell","Werkleitung Koordinationsmodell"]
["Werkleitungen","9001","WLK-","WASS",{"$nulls":4},"X",{"$nulls":9},"X",null,"Werkleitung Wasser"]
["Werkleitungen","9002","WLK-","ABWA",{"$nulls":14},"",null,"Werkleitung Abwasser"]
["Werkleitungen","9003","WLK-","ELEK",{"$nulls":6},"X",{"$nulls":7},"",null,"Werkleitung Elektrizität"]
["Werkleitungen","9004","WLK-","GASV",{"$nulls":7},"X",{"$nulls":6},"",null,"Gasversorgung"]
["Werkleitungen","9005","WLK-","TELK",{"$nulls":14},"",null,"Werkleitung Telekommunikation"]
["Werkleitungen","9006","WLK-","FEWA",{"$nulls":6},"X",{"$nulls":7},"",null,"Werkleitung Fernwärme"]
["Werkleitungen","9007","WLK-","OBEL",{"$nulls":6},"X",{"$nulls":7},"",null,"Öffentliche Beleuchtung"]
["Werkleitungen","9008","WLK-","VSTA",{"$nulls":10},"X",{"$nulls":3},"",null,"Werkleitung Verkehrssteuerungsanlagen"]
["Werkleitungen","9009","WLK-","MOEV",{"$nulls":3},"X",{"$nulls":10},"",null,"Werkleitungen Mobiler öffentlicher Verkehr 600V","600Volt Leitungen im Eigentum der VBZ"]
[{"$nulls":18},""]
["Bauzustände","10000-","BZT-","KOOM",null,null,"X",{"$nulls":11},"",null,"Bauzustände Koordinationsmodel","Bauzustände Koordinationsmodel. Hier finden sich Fachmodelle für die Bauzustände",".ifc","Hier finden sich Fachmodelle für die Bauzustände"]
["Bauzustände","10001-","BZT-","BPPL",null,null,"X",{"$nulls":11},"",null,"Bauphasenplan bzw. Bauperimeter/Baubereich je Etappe",null,".ifc","Bauphasenplan bzw. Bauperimeter/Baubereich je Etappe"]
["Bauzustände","10002-","BZT-","ABSR",null,null,"X",{"$nulls":11},"",null,"Abschrankungen",null,".ifc","Abschrankungen"]
["Bauzustände","10003-","BZT-","GERS",null,null,"X",{"$nulls":11},"",null,"Gerüste",null,".ifc","Gerüste"]
["Bauzustände","10004-","BZT-","INFL",null,null,"X",{"$nulls":11},"",null,"Installationsflächen",null,".ifc","Installationsflächen"]
["Bauzustände","10005-","BZT-","QSPR",null,null,"X",{"$nulls":11},"",null,"Qualitätssicherungen / Prüfungen",null,".ifc","Qualitätssicherungen / Prüfungen"]
[{"$nulls":18},""]
[{"$nulls":18},{"$f":"IF(OR($I203=\"X\", $M203=\"X\", $Q203=\"X\"), \"X\", \"\")","v":""}]
[{"$nulls":18},{"$f":"IF(OR($I204=\"X\", $M204=\"X\", $Q204=\"X\"), \"X\", \"\")","v":""}]
[{"$nulls":18},""]
[{"$nulls":18},""]
[{"$nulls":18},""]
[{"$nulls":18},""]
[{"$nulls":18},""]
[{"$nulls":18},""]
[{"$nulls":18},""]
[{"$nulls":18},""]
[{"$nulls":18},""]
[{"$nulls":18},""]
[{"$nulls":18},""]
[{"$nulls":18},""]
[{"$nulls":18},""]
[{"$nulls":18},""]
[{"$nulls":18},""]
[{"$nulls":18},""]
[{"$nulls":18},""]
[{"$nulls":18},""]
[{"$nulls":18},""]
[{"$nulls":18},""]
[{"$nulls":18},""]
[{"$nulls":18},""]
[{"$nulls":18},""]
[{"$nulls":18},""]
[{"$nulls":18},""]
[{"$nulls":18},""]
[{"$nulls":18},""]
[{"$nulls":18},""]
[{"$nulls":18},""]
[{"$nulls":18},""]
[{"$nulls":18},""]
[{"$nulls":18},""]
[{"$nulls":18},""]
[{"$nulls":18},""]
[{"$nulls":18},""]
[{"$nulls":18},""]
[{"$nulls":18},""]
[{"$nulls":18},""]
[{"$nulls":18},{"$f":"IF(OR($I243=\"X\", $M243=\"X\", $Q243=\"X\"), \"X\", \"\")","v":""}]
[{"$nulls":18},""]
[{"$nulls":18},""]
[{"$nulls":18},""]
[{"$nulls":18},""]
[{"$nulls":18},""]
[{"$nulls":18},""]
[{"$nulls":18},""]
[{"$nulls":18},""]
[{"$nulls":18},""]
[{"$nulls":18},""]
[{"$nulls":18},""]
[{"$nulls":18},""]
[{"$nulls":18},""]
[{"$nulls":18},""]
[{"$nulls":18},""]
[{"$nulls":18},""]
[{"$nulls":18},""]
[{"$nulls":18},""]
[{"$nulls":18},""]
[{"$nulls":18},""]
[{"$nulls":18},""]
[{"$nulls":18},""]

{"sheet":"04_Arbeitspakete","index":3,"n_rows":262,"n_cols":25,"rows_kept":262}
["Fachmodelle",null,null,"Arbeitspakete aus Merkmalserver"]
["Domäne Kürzel","Fachmodell-Kürzel","Fachmodellname","Ausbau thermische Netze","Bäume","Beschriftungen für Modell und Plane","Gleisbau","Kunstwerke","Lärmschutz","Parkierung","Plan Lumiere","Störfallvorsorge Durchgangsstrassen, Risikokataster","Velonetz",{"$f":"'03_Fachmodelle@StZH'!A29","v":"Hochbau"},{"$f":"'03_Fachmodelle@StZH'!A62","v":"Mobiler öffentlicher Verkehr"},{"$f":"'03_Fachmodelle@StZH'!A73","v":"Tunnel"},{"$f":"'03_Fachmodelle@StZH'!A99","v":"Strasse"},{"$f":"'03_Fachmodelle@StZH'!A120","v":"Anlagenbau"},{"$f":"'03_Fachmodelle@StZH'!A148","v":"Kunstbauten"},{"$f":"'03_Fachmodelle@StZH'!A154","v":"Stützmauer"},{"$f":"'03_Fachmodelle@StZH'!A160","v":"Unterführung"},{"$f":"'03_Fachmodelle@StZH'!A166","v":"Stege und Fussgängerüberführung"},{"$f":"'03_Fachmodelle@StZH'!A172","v":"Brücke"},{"$f":"'03_Fachmodelle@StZH'!A181","v":"Wasserbauwerke"},{"$f":"'03_Fachmodelle@StZH'!A185","v":"Werkleitungen"}]
[{"$f":"'03_Fachmodelle@StZH'!C4","v":"ALG-"},{"$f":"'03_Fachmodelle@StZH'!D4","v":"KOOM"},{"$f":"'03_Fachmodelle@StZH'!U4","v":"Allgemeines Koordinationsmodell"}]
[{"$f":"'03_Fachmodelle@StZH'!C5","v":"ALG-"},{"$f":"'03_Fachmodelle@StZH'!D5","v":"LOGI"},{"$f":"'03_Fachmodelle@StZH'!U5","v":"Logistikmodell"}]
[{"$f":"'03_Fachmodelle@StZH'!C6","v":"ALG-"},{"$f":"'03_Fachmodelle@StZH'!D6","v":"GELM"},{"$f":"'03_Fachmodelle@StZH'!U6","v":"Digitales Geländemodell"}]
[{"$f":"'03_Fachmodelle@StZH'!C7","v":"ALG-"},{"$f":"'03_Fachmodelle@StZH'!D7","v":"BAGR"},{"$f":"'03_Fachmodelle@StZH'!U7","v":"Baugrundmodell"}]
[{"$f":"'03_Fachmodelle@StZH'!C8","v":"ALG-"},{"$f":"'03_Fachmodelle@StZH'!D8","v":"SCAN"},{"$f":"'03_Fachmodelle@StZH'!U8","v":"Scanmodelle"}]
[{"$f":"'03_Fachmodelle@StZH'!C9","v":"ALG-"},{"$f":"'03_Fachmodelle@StZH'!D9","v":"UMGB"},{"$f":"'03_Fachmodelle@StZH'!U9","v":"Umgebung"}]
[{"$f":"'03_Fachmodelle@StZH'!C10","v":"ALG-"},{"$f":"'03_Fachmodelle@StZH'!D10","v":"BAUM"},{"$f":"'03_Fachmodelle@StZH'!U10","v":"Bäume"},null,"x"]
[{"$f":"'03_Fachmodelle@StZH'!C11","v":"ALG-"},{"$f":"'03_Fachmodelle@StZH'!D11","v":"UMLB"},{"$f":"'03_Fachmodelle@StZH'!U11","v":"Umweltmodell-Lärmbelastung"},{"$nulls":5},"x"]
[{"$f":"'03_Fachmodelle@StZH'!C12","v":"ALG-"},{"$f":"'03_Fachmodelle@StZH'!D12","v":"UMBB"},{"$f":"'03_Fachmodelle@StZH'!U12","v":"Umweltmodell-Bodenbelastung"}]
[{"$f":"'03_Fachmodelle@StZH'!C13","v":"ALG-"},{"$f":"'03_Fachmodelle@StZH'!D13","v":"RAST"},{"$f":"'03_Fachmodelle@StZH'!U13","v":"Raster"}]
[{"$f":"'03_Fachmodelle@StZH'!C14","v":"ALG-"},{"$f":"'03_Fachmodelle@StZH'!D14","v":"BAUL"},{"$f":"'03_Fachmodelle@StZH'!U14","v":"Baulinie / Interessenlinien"}]
[{"$f":"'03_Fachmodelle@StZH'!C15","v":"ALG-"},{"$f":"'03_Fachmodelle@StZH'!D15","v":"BELS"},{"$f":"'03_Fachmodelle@StZH'!U15","v":"Kataster der belasteten Standorte"}]
[{"$f":"'03_Fachmodelle@StZH'!C16","v":"ALG-"},{"$f":"'03_Fachmodelle@StZH'!D16","v":"KATR"},{"$f":"'03_Fachmodelle@StZH'!U16","v":"Grundstücksgrenzen"}]
[{"$f":"'03_Fachmodelle@StZH'!C17","v":"ALG-"},{"$f":"'03_Fachmodelle@StZH'!D17","v":"OBGW"},{"$f":"'03_Fachmodelle@StZH'!U17","v":"Oberflächengewässer"}]
[{"$f":"'03_Fachmodelle@StZH'!C18","v":"ALG-"},{"$f":"'03_Fachmodelle@StZH'!D18","v":"SWGA"},{"$f":"'03_Fachmodelle@StZH'!U18","v":"Schützenswerte Gärten und Anlagen"}]
[{"$f":"'03_Fachmodelle@StZH'!C19","v":"ALG-"},{"$f":"'03_Fachmodelle@StZH'!D19","v":"NALS"},{"$f":"'03_Fachmodelle@StZH'!U19","v":"Natur und Landschaftsschutz"}]
[{"$f":"'03_Fachmodelle@StZH'!C20","v":"ALG-"},{"$f":"'03_Fachmodelle@StZH'!D20","v":"AMPH"},{"$f":"'03_Fachmodelle@StZH'!U20","v":"Amphibienschwerpunktzonen "}]
[{"$f":"'03_Fachmodelle@StZH'!C21","v":"ALG-"},{"$f":"'03_Fachmodelle@StZH'!D21","v":"DENK"},{"$f":"'03_Fachmodelle@StZH'!U21","v":"Denkmalpflege"}]
[{"$f":"'03_Fachmodelle@StZH'!C22","v":"ALG-"},{"$f":"'03_Fachmodelle@StZH'!D22","v":"ARLG"},{"$f":"'03_Fachmodelle@StZH'!U22","v":"Archäologie"}]
[{"$f":"'03_Fachmodelle@StZH'!C23","v":"ALG-"},{"$f":"'03_Fachmodelle@StZH'!D23","v":"TIBL"},{"$f":"'03_Fachmodelle@StZH'!U23","v":"Titelblatt / Blianzen / Legenden"}]
[{"$f":"'03_Fachmodelle@StZH'!C24","v":"ALG-"},{"$f":"'03_Fachmodelle@StZH'!D24","v":"LAGP"},{"$f":"'03_Fachmodelle@StZH'!U24","v":"Lagefix- und Einfügepunkte"}]
[{"$f":"'03_Fachmodelle@StZH'!C25","v":"ALG-"},{"$f":"'03_Fachmodelle@StZH'!D25","v":"PERI"},{"$f":"'03_Fachmodelle@StZH'!U25","v":"Baubereich / Bauperimeter"}]
[{"$f":"'03_Fachmodelle@StZH'!C28","v":0},{"$f":"'03_Fachmodelle@StZH'!D28","v":0},{"$f":"'03_Fachmodelle@StZH'!U28","v":0}]
[{"$f":"'03_Fachmodelle@StZH'!C29","v":"HOH-"},{"$f":"'03_Fachmodelle@StZH'!D29","v":"KOOM"},{"$f":"'03_Fachmodelle@StZH'!V29","v":"Hochbau Koordinationsmodell"},{"$nulls":10},"x"]
[{"$f":"'03_Fachmodelle@StZH'!C30","v":"HOH-"},{"$f":"'03_Fachmodelle@StZH'!D30","v":"ARCH"},{"$f":"'03_Fachmodelle@StZH'!U30","v":"Architektur"},{"$nulls":10},"x"]
[{"$f":"'03_Fachmodelle@StZH'!C31","v":"HOH-"},{"$f":"'03_Fachmodelle@StZH'!D31","v":"INGB"},{"$f":"'03_Fachmodelle@StZH'!U31","v":"Ingenieurbau"},{"$nulls":10},"x"]
[{"$f":"'03_Fachmodelle@StZH'!C32","v":"HOH-"},{"$f":"'03_Fachmodelle@StZH'!D32","v":"TRWK"},{"$f":"'03_Fachmodelle@StZH'!U32","v":"Tragwerk"},{"$nulls":10},"x"]
[{"$f":"'03_Fachmodelle@StZH'!C33","v":"HOH-"},{"$f":"'03_Fachmodelle@StZH'!D33","v":"AUSS"},{"$f":"'03_Fachmodelle@StZH'!U33","v":"Aussparungen"},{"$nulls":10},"x"]
[{"$f":"'03_Fachmodelle@StZH'!C34","v":"HOH-"},{"$f":"'03_Fachmodelle@StZH'!D34","v":"SPZN"},{"$f":"'03_Fachmodelle@StZH'!U34","v":"Sperrzonen"},{"$nulls":10},"x"]
[{"$f":"'03_Fachmodelle@StZH'!C35","v":"HOH-"},{"$f":"'03_Fachmodelle@StZH'!D35","v":"BEWE"},{"$f":"'03_Fachmodelle@StZH'!U35","v":"Bewehrung"},{"$nulls":10},"x"]
[{"$f":"'03_Fachmodelle@StZH'!C36","v":"HOH-"},{"$f":"'03_Fachmodelle@StZH'!D36","v":"EIBT"},{"$f":"'03_Fachmodelle@StZH'!U36","v":"Einbauteile"},{"$nulls":10},"x"]
[{"$f":"'03_Fachmodelle@StZH'!C37","v":"HOH-"},{"$f":"'03_Fachmodelle@StZH'!D37","v":"FASS"},{"$f":"'03_Fachmodelle@StZH'!U37","v":"Fassade"},{"$nulls":10},"x"]
[{"$f":"'03_Fachmodelle@StZH'!C38","v":"HOH-"},{"$f":"'03_Fachmodelle@StZH'!D38","v":"RAUM"},{"$f":"'03_Fachmodelle@StZH'!U38","v":"Räume"},{"$nulls":10},"x"]
[{"$f":"'03_Fachmodelle@StZH'!C39","v":"HOH-"},{"$f":"'03_Fachmodelle@StZH'!D39","v":"BRAN"},{"$f":"'03_Fachmodelle@StZH'!U39","v":"Brandschutz"},{"$nulls":10},"x"]
[{"$f":"'03_Fachmodelle@StZH'!C40","v":"HOH-"},{"$f":"'03_Fachmodelle@StZH'!D40","v":"AUST"},{"$f":"'03_Fachmodelle@StZH'!U40","v":"Ausstattung"},{"$nulls":10},"x"]
[{"$f":"'03_Fachmodelle@StZH'!C41","v":"HOH-"},{"$f":"'03_Fachmodelle@StZH'!D41","v":"AKUS"},{"$f":"'03_Fachmodelle@StZH'!U41","v":"Akustik"},{"$nulls":10},"x"]
[{"$f":"'03_Fachmodelle@StZH'!C42","v":"HOH-"},{"$f":"'03_Fachmodelle@StZH'!D42","v":"BAPH"},{"$f":"'03_Fachmodelle@StZH'!U42","v":"Bauphysik"},{"$nulls":10},"x"]
[{"$f":"'03_Fachmodelle@StZH'!C43","v":"HOH-"},{"$f":"'03_Fachmodelle@StZH'!D43","v":"LUFT"},{"$f":"'03_Fachmodelle@StZH'!U43","v":"Lüftung"},{"$nulls":10},"x"]
[{"$f":"'03_Fachmodelle@StZH'!C44","v":"HOH-"},{"$f":"'03_Fachmodelle@StZH'!D44","v":"HEIZ"},{"$f":"'03_Fachmodelle@StZH'!U44","v":"Heizung"},{"$nulls":10},"x"]
[{"$f":"'03_Fachmodelle@StZH'!C45","v":"HOH-"},{"$f":"'03_Fachmodelle@StZH'!D45","v":"KLTE"},{"$f":"'03_Fachmodelle@StZH'!U45","v":"Kälte"},{"$nulls":10},"x"]
[{"$f":"'03_Fachmodelle@StZH'!C46","v":"HOH-"},{"$f":"'03_Fachmodelle@StZH'!D46","v":"SANI"},{"$f":"'03_Fachmodelle@StZH'!U46","v":"Sanitär"},{"$nulls":10},"x"]
[{"$f":"'03_Fachmodelle@StZH'!C47","v":"HOH-"},{"$f":"'03_Fachmodelle@StZH'!D47","v":"ENER"},{"$f":"'03_Fachmodelle@StZH'!U47","v":"Energie"},{"$nulls":10},"x"]
[{"$f":"'03_Fachmodelle@StZH'!C48","v":"HOH-"},{"$f":"'03_Fachmodelle@StZH'!D48","v":"ELEK"},{"$f":"'03_Fachmodelle@StZH'!U48","v":"Elektro"},{"$nulls":10},"x"]
[{"$f":"'03_Fachmodelle@StZH'!C49","v":"HOH-"},{"$f":"'03_Fachmodelle@StZH'!D49","v":"TELE"},{"$f":"'03_Fachmodelle@StZH'!U49","v":"Telekommunikation"},{"$nulls":10},"x"]
[{"$f":"'03_Fachmodelle@StZH'!C50","v":"HOH-"},{"$f":"'03_Fachmodelle@StZH'!D50","v":"GEBA"},{"$f":"'03_Fachmodelle@StZH'!U50","v":"Gebäudeautomation"},{"$nulls":10},"x"]
[{"$f":"'03_Fachmodelle@StZH'!C51","v":"HOH-"},{"$f":"'03_Fachmodelle@StZH'!D51","v":"GASV"},{"$f":"'03_Fachmodelle@StZH'!U51","v":"Gasversorgung"},{"$nulls":10},"x"]
[{"$f":"'03_Fachmodelle@StZH'!C52","v":"HOH-"},{"$f":"'03_Fachmodelle@StZH'!D52","v":"LPLN"},{"$f":"'03_Fachmodelle@StZH'!U52","v":"Lichtplanung"},{"$nulls":10},"x"]
[{"$f":"'03_Fachmodelle@StZH'!C53","v":"HOH-"},{"$f":"'03_Fachmodelle@StZH'!D53","v":"SGLK"},{"$f":"'03_Fachmodelle@StZH'!U53","v":"Signaletik"},{"$nulls":6},"x",{"$nulls":3},"x"]
[{"$f":"'03_Fachmodelle@StZH'!C54","v":"HOH-"},{"$f":"'03_Fachmodelle@StZH'!D54","v":"STAT"},{"$f":"'03_Fachmodelle@StZH'!U54","v":"Statik"},{"$nulls":10},"x"]
[{"$f":"'03_Fachmodelle@StZH'!C55","v":"HOH-"},{"$f":"'03_Fachmodelle@StZH'!D55","v":"TRAN"},{"$f":"'03_Fachmodelle@StZH'!U55","v":"Transport"},{"$nulls":10},"x"]
[{"$f":"'03_Fachmodelle@StZH'!C56","v":"HOH-"},{"$f":"'03_Fachmodelle@StZH'!D56","v":"UMGB"},{"$f":"'03_Fachmodelle@StZH'!U56","v":"Umgebung"},{"$nulls":10},"x"]
[{"$f":"'03_Fachmodelle@StZH'!C57","v":"HOH-"},{"$f":"'03_Fachmodelle@StZH'!D57","v":"BEPL"},{"$f":"'03_Fachmodelle@StZH'!U57","v":"Bewirtschaftungspläne"},{"$nulls":10},"x"]
[{"$f":"'03_Fachmodelle@StZH'!C58","v":"HOH-"},{"$f":"'03_Fachmodelle@StZH'!D58","v":"VOLS"},{"$f":"'03_Fachmodelle@StZH'!U58","v":"Volumenmodell nach SIA416"},{"$nulls":10},"x"]
[{"$f":"'03_Fachmodelle@StZH'!C59","v":"HOH-"},{"$f":"'03_Fachmodelle@StZH'!D59","v":"MEDT"},{"$f":"'03_Fachmodelle@StZH'!U59","v":"Medizintechnik"},{"$nulls":10},"x"]
[{"$f":"'03_Fachmodelle@StZH'!C60","v":"HOH-"},{"$f":"'03_Fachmodelle@StZH'!D60","v":"PAPL"},{"$f":"'03_Fachmodelle@StZH'!U60","v":"Parkplatz innen"},{"$nulls":10},"x"]
[{"$f":"'03_Fachmodelle@StZH'!C61","v":0},{"$f":"'03_Fachmodelle@StZH'!D61","v":0},{"$f":"'03_Fachmodelle@StZH'!U61","v":0}]
[{"$f":"'03_Fachmodelle@StZH'!C62","v":"MOV-"},{"$f":"'03_Fachmodelle@StZH'!D62","v":"KOOM"},{"$f":"'03_Fachmodelle@StZH'!V62","v":"Mobiler öffentlicher Verkehr Koordinationsmodell"},{"$nulls":11},"x"]
[{"$f":"'03_Fachmodelle@StZH'!C63","v":"MOV-"},{"$f":"'03_Fachmodelle@StZH'!D63","v":"LINF"},{"$f":"'03_Fachmodelle@StZH'!U63","v":"Linienführung/Trassierung"},{"$nulls":11},"x"]
[{"$f":"'03_Fachmodelle@StZH'!C64","v":"MOV-"},{"$f":"'03_Fachmodelle@StZH'!D64","v":"FAHB"},{"$f":"'03_Fachmodelle@StZH'!U64","v":"Fahrbahn/Gleistrassee "},{"$nulls":11},"x"]
[{"$f":"'03_Fachmodelle@StZH'!C65","v":"MOV-"},{"$f":"'03_Fachmodelle@StZH'!D65","v":"SCHL"},{"$f":"'03_Fachmodelle@StZH'!U65","v":"Schleppkurve/Lichtraumprofil Bus"},{"$nulls":11},"x"]
[{"$f":"'03_Fachmodelle@StZH'!C66","v":"MOV-"},{"$f":"'03_Fachmodelle@StZH'!D66","v":"LRPF"},{"$f":"'03_Fachmodelle@StZH'!U66","v":"Lichtraumprofil Tram"},{"$nulls":11},"x"]
[{"$f":"'03_Fachmodelle@StZH'!C67","v":"MOV-"},{"$f":"'03_Fachmodelle@StZH'!D67","v":"FAST"},{"$f":"'03_Fachmodelle@StZH'!U67","v":"Fahrstrom und Masten (inkl. Fundamente)"},{"$nulls":11},"x"]
[{"$f":"'03_Fachmodelle@StZH'!C68","v":"MOV-"},{"$f":"'03_Fachmodelle@StZH'!D68","v":"SICH"},{"$f":"'03_Fachmodelle@StZH'!U68","v":"Bahnsicherungsanlagen"},{"$nulls":11},"x"]
[{"$f":"'03_Fachmodelle@StZH'!C69","v":"MOV-"},{"$f":"'03_Fachmodelle@StZH'!D69","v":"HALT"},{"$f":"'03_Fachmodelle@StZH'!U69","v":"Haltestellenausrüstung"},{"$nulls":11},"x"]
[{"$f":"'03_Fachmodelle@StZH'!C70","v":"MOV-"},{"$f":"'03_Fachmodelle@StZH'!D70","v":"BEHI"},{"$f":"'03_Fachmodelle@StZH'!U70","v":"Behindertengerechteplanung"},{"$nulls":11},"x"]
[{"$f":"'03_Fachmodelle@StZH'!C71","v":"MOV-"},{"$f":"'03_Fachmodelle@StZH'!D71","v":"ANNO"},{"$f":"'03_Fachmodelle@StZH'!U71","v":"Annotations- und Beschriftungsmodell"},{"$nulls":11},"x"]
[{"$f":"'03_Fachmodelle@StZH'!C72","v":0},{"$f":"'03_Fachmodelle@StZH'!D72","v":0},{"$f":"'03_Fachmodelle@StZH'!U72","v":0}]
[{"$f":"'03_Fachmodelle@StZH'!C73","v":"TUN-"},{"$f":"'03_Fachmodelle@StZH'!D73","v":"KOOM"},{"$f":"'03_Fachmodelle@StZH'!V73","v":"Tunnel Koordinationsmodell"},{"$nulls":12},"x"]
[{"$f":"'03_Fachmodelle@StZH'!C74","v":"TUN-"},{"$f":"'03_Fachmodelle@StZH'!D74","v":"ARCH"},{"$f":"'03_Fachmodelle@StZH'!U74","v":"Architektur"},{"$nulls":12},"x"]
[{"$f":"'03_Fachmodelle@StZH'!C75","v":"TUN-"},{"$f":"'03_Fachmodelle@StZH'!D75","v":"TRWK"},{"$f":"'03_Fachmodelle@StZH'!U75","v":"Tragwerk & Ingenieurbau"},{"$nulls":12},"x"]
[{"$f":"'03_Fachmodelle@StZH'!C76","v":"TUN-"},{"$f":"'03_Fachmodelle@StZH'!D76","v":"AUSS"},{"$f":"'03_Fachmodelle@StZH'!U76","v":"Aussparungen"},{"$nulls":12},"x"]
[{"$f":"'03_Fachmodelle@StZH'!C77","v":"TUN-"},{"$f":"'03_Fachmodelle@StZH'!D77","v":"SPZN"},{"$f":"'03_Fachmodelle@StZH'!U77","v":"Sperrzonen"},{"$nulls":12},"x"]
[{"$f":"'03_Fachmodelle@StZH'!C78","v":"TUN-"},{"$f":"'03_Fachmodelle@StZH'!D78","v":"BEWE"},{"$f":"'03_Fachmodelle@StZH'!U78","v":"Bewehrung"},{"$nulls":12},"x"]
[{"$f":"'03_Fachmodelle@StZH'!C79","v":"TUN-"},{"$f":"'03_Fachmodelle@StZH'!D79","v":"EIBT"},{"$f":"'03_Fachmodelle@StZH'!U79","v":"Einbauteile"},{"$nulls":12},"x"]
[{"$f":"'03_Fachmodelle@StZH'!C80","v":"TUN-"},{"$f":"'03_Fachmodelle@StZH'!D80","v":"FASS"},{"$f":"'03_Fachmodelle@StZH'!U80","v":"Fassade"},{"$nulls":12},"x"]
[{"$f":"'03_Fachmodelle@StZH'!C81","v":"TUN-"},{"$f":"'03_Fachmodelle@StZH'!D81","v":"RAUM"},{"$f":"'03_Fachmodelle@StZH'!U81","v":"Räume"},{"$nulls":12},"x"]
[{"$f":"'03_Fachmodelle@StZH'!C82","v":"TUN-"},{"$f":"'03_Fachmodelle@StZH'!D82","v":"BRAN"},{"$f":"'03_Fachmodelle@StZH'!U82","v":"Brandschutz"},{"$nulls":12},"x"]
[{"$f":"'03_Fachmodelle@StZH'!C83","v":"TUN-"},{"$f":"'03_Fachmodelle@StZH'!D83","v":"AUST"},{"$f":"'03_Fachmodelle@StZH'!U83","v":"Ausstattung & Möblierung"},{"$nulls":12},"x"]
[{"$f":"'03_Fachmodelle@StZH'!C84","v":"TUN-"},{"$f":"'03_Fachmodelle@StZH'!D84","v":"AKUS"},{"$f":"'03_Fachmodelle@StZH'!U84","v":"Akustik"},{"$nulls":12},"x"]
[{"$f":"'03_Fachmodelle@StZH'!C85","v":"TUN-"},{"$f":"'03_Fachmodelle@StZH'!D85","v":"BAPH"},{"$f":"'03_Fachmodelle@StZH'!U85","v":"Bauphysik"},{"$nulls":12},"x"]
[{"$f":"'03_Fachmodelle@StZH'!C86","v":"TUN-"},{"$f":"'03_Fachmodelle@StZH'!D86","v":"LUFT"},{"$f":"'03_Fachmodelle@StZH'!U86","v":"Lüftung"},{"$nulls":12},"x"]
[{"$f":"'03_Fachmodelle@StZH'!C87","v":"TUN-"},{"$f":"'03_Fachmodelle@StZH'!D87","v":"HEIZ"},{"$f":"'03_Fachmodelle@StZH'!U87","v":"Heizung"},{"$nulls":12},"x"]
[{"$f":"'03_Fachmodelle@StZH'!C88","v":"TUN-"},{"$f":"'03_Fachmodelle@StZH'!D88","v":"KLTE"},{"$f":"'03_Fachmodelle@StZH'!U88","v":"Kühlung"},{"$nulls":12},"x"]
[{"$f":"'03_Fachmodelle@StZH'!C89","v":"TUN-"},{"$f":"'03_Fachmodelle@StZH'!D89","v":"SANI"},{"$f":"'03_Fachmodelle@StZH'!U89","v":"Sanitär"},{"$nulls":12},"x"]
[{"$f":"'03_Fachmodelle@StZH'!C90","v":"TUN-"},{"$f":"'03_Fachmodelle@StZH'!D90","v":"ENER"},{"$f":"'03_Fachmodelle@StZH'!U90","v":"Energie"},{"$nulls":12},"x"]
[{"$f":"'03_Fachmodelle@StZH'!C91","v":"TUN-"},{"$f":"'03_Fachmodelle@StZH'!D91","v":"ELEK"},{"$f":"'03_Fachmodelle@StZH'!U91","v":"Elektro"},{"$nulls":12},"x"]
[{"$f":"'03_Fachmodelle@StZH'!C92","v":"TUN-"},{"$f":"'03_Fachmodelle@StZH'!D92","v":"TELE"},{"$f":"'03_Fachmodelle@StZH'!U92","v":"Telekommunikation"},{"$nulls":12},"x"]
[{"$f":"'03_Fachmodelle@StZH'!C93","v":"TUN-"},{"$f":"'03_Fachmodelle@StZH'!D93","v":"GEBA"},{"$f":"'03_Fachmodelle@StZH'!U93","v":"Gebäudeautomation"},{"$nulls":12},"x"]
[{"$f":"'03_Fachmodelle@StZH'!C94","v":"TUN-"},{"$f":"'03_Fachmodelle@StZH'!D94","v":"GASV"},{"$f":"'03_Fachmodelle@StZH'!U94","v":"Gasversorgung"},{"$nulls":12},"x"]
[{"$f":"'03_Fachmodelle@StZH'!C95","v":"TUN-"},{"$f":"'03_Fachmodelle@StZH'!D95","v":"LPLN"},{"$f":"'03_Fachmodelle@StZH'!U95","v":"Lichtplanung"},{"$nulls":12},"x"]
[{"$f":"'03_Fachmodelle@StZH'!C96","v":"TUN-"},{"$f":"'03_Fachmodelle@StZH'!D96","v":"SGLK"},{"$f":"'03_Fachmodelle@StZH'!U96","v":"Siganletik"},{"$nulls":12},"x"]
[{"$f":"'03_Fachmodelle@StZH'!C97","v":"TUN-"},{"$f":"'03_Fachmodelle@StZH'!D97","v":"ANNO"},{"$f":"'03_Fachmodelle@StZH'!U97","v":"Annotations- und Beschriftungsmodell"},{"$nulls":12},"x"]
[{"$f":"'03_Fachmodelle@StZH'!C98","v":0},{"$f":"'03_Fachmodelle@StZH'!D98","v":0},{"$f":"'03_Fachmodelle@StZH'!U98","v":0}]
[{"$f":"'03_Fachmodelle@StZH'!C99","v":"STR-"},{"$f":"'03_Fachmodelle@StZH'!D99","v":"KOOM"},{"$f":"'03_Fachmodelle@StZH'!V99","v":"Strassen Koordinationsmodell"},{"$nulls":13},"x"]
[{"$f":"'03_Fachmodelle@StZH'!C100","v":"STR-"},{"$f":"'03_Fachmodelle@StZH'!D100","v":"ABSL"},{"$f":"'03_Fachmodelle@StZH'!U100","v":"Abschlüsse "},{"$nulls":13},"x"]
[{"$f":"'03_Fachmodelle@StZH'!C101","v":"STR-"},{"$f":"'03_Fachmodelle@StZH'!D101","v":"GEHW"},{"$f":"'03_Fachmodelle@StZH'!U101","v":"Gehweg / Begegnungszone"},{"$nulls":13},"x"]
[{"$f":"'03_Fachmodelle@StZH'!C102","v":"STR-"},{"$f":"'03_Fachmodelle@StZH'!D102","v":"FAHR"},{"$f":"'03_Fachmodelle@StZH'!U102","v":"Fahrbahn "},{"$nulls":13},"x"]
[{"$f":"'03_Fachmodelle@StZH'!C103","v":"STR-"},{"$f":"'03_Fachmodelle@StZH'!D103","v":"VELO"},{"$f":"'03_Fachmodelle@StZH'!U103","v":"Veloweg"},{"$nulls":13},"x"]
[{"$f":"'03_Fachmodelle@StZH'!C104","v":"STR-"},{"$f":"'03_Fachmodelle@StZH'!D104","v":"ENTW"},{"$f":"'03_Fachmodelle@StZH'!U104","v":"Strassenentwässerung"},{"$nulls":13},"x"]
[{"$f":"'03_Fachmodelle@StZH'!C105","v":"STR-"},{"$f":"'03_Fachmodelle@StZH'!D105","v":"BASH"},{"$f":"'03_Fachmodelle@StZH'!U105","v":"Baumschutzsystem"},{"$nulls":13},"x"]
[{"$f":"'03_Fachmodelle@StZH'!C106","v":"STR-"},{"$f":"'03_Fachmodelle@StZH'!D106","v":"AUST"},{"$f":"'03_Fachmodelle@StZH'!U106","v":"Ausstattung & Möblierung"},{"$nulls":13},"x"]
[{"$f":"'03_Fachmodelle@StZH'!C107","v":"STR-"},{"$f":"'03_Fachmodelle@StZH'!D107","v":"MAUR"},{"$f":"'03_Fachmodelle@StZH'!U107","v":"Mauern / Zäune / Geländer"},{"$nulls":13},"x"]
[{"$f":"'03_Fachmodelle@StZH'!C108","v":"STR-"},{"$f":"'03_Fachmodelle@StZH'!D108","v":"KUNS"},{"$f":"'03_Fachmodelle@StZH'!U108","v":"Kunst im Stadtraum"},{"$nulls":4},"x",{"$nulls":8},"x"]
[{"$f":"'03_Fachmodelle@StZH'!C109","v":"STR-"},{"$f":"'03_Fachmodelle@StZH'!D109","v":"BESR"},{"$f":"'03_Fachmodelle@StZH'!U109","v":"Beschriftung"},"x","x","x","x","x","x","x","x","x","x","x","x","x","x","x","x","x","x","x","x","x","x"]
[{"$f":"'03_Fachmodelle@StZH'!C110","v":"STR-"},{"$f":"'03_Fachmodelle@StZH'!D110","v":"ERSL"},{"$f":"'03_Fachmodelle@StZH'!U110","v":"Erschliessung"},{"$nulls":13},"x"]
[{"$f":"'03_Fachmodelle@StZH'!C111","v":"STR-"},{"$f":"'03_Fachmodelle@StZH'!D111","v":"KONZ"},{"$f":"'03_Fachmodelle@StZH'!U111","v":"Konzessionen"},{"$nulls":13},"x"]
[{"$f":"'03_Fachmodelle@StZH'!C112","v":"STR-"},{"$f":"'03_Fachmodelle@StZH'!D112","v":"SKUR"},{"$f":"'03_Fachmodelle@StZH'!U112","v":"Schleppkurven"},{"$nulls":13},"x"]
[{"$f":"'03_Fachmodelle@StZH'!C113","v":"STR-"},{"$f":"'03_Fachmodelle@StZH'!D113","v":"RERW"},{"$f":"'03_Fachmodelle@StZH'!U113","v":"Rechtserwerb"},{"$nulls":13},"x"]
[{"$f":"'03_Fachmodelle@StZH'!C114","v":"STR-"},{"$f":"'03_Fachmodelle@StZH'!D114","v":"BAUM"},{"$f":"'03_Fachmodelle@StZH'!U114","v":"Bäume"},null,"x",{"$nulls":11},"x"]
[{"$f":"'03_Fachmodelle@StZH'!C115","v":"STR-"},{"$f":"'03_Fachmodelle@StZH'!D115","v":"SIGN"},{"$f":"'03_Fachmodelle@StZH'!U115","v":"Beschilderung/Signalisation/Leitanlagen"},{"$nulls":6},"x",{"$nulls":6},"x"]
[{"$f":"'03_Fachmodelle@StZH'!C116","v":"STR-"},{"$f":"'03_Fachmodelle@StZH'!D116","v":"VSAL"},{"$f":"'03_Fachmodelle@StZH'!U116","v":"Verkehrssteuerungsanlagen / Lichtsignalanlagen"},{"$nulls":6},"x",{"$nulls":6},"x"]
[{"$f":"'03_Fachmodelle@StZH'!C117","v":"STR-"},{"$f":"'03_Fachmodelle@StZH'!D117","v":"BELU"},{"$f":"'03_Fachmodelle@StZH'!U117","v":"Strasse Beleuchtung inkl. Masten"},{"$nulls":13},"x"]
[{"$f":"'03_Fachmodelle@StZH'!C118","v":"STR-"},{"$f":"'03_Fachmodelle@StZH'!D118","v":"MARK"},{"$f":"'03_Fachmodelle@StZH'!U118","v":"Markierungen Bodenoberfläche"},{"$nulls":6},"x",{"$nulls":6},"x"]
[{"$f":"'03_Fachmodelle@StZH'!C119","v":0},{"$f":"'03_Fachmodelle@StZH'!D119","v":0},{"$f":"'03_Fachmodelle@StZH'!U119","v":0}]
[{"$f":"'03_Fachmodelle@StZH'!C120","v":"ANL-"},{"$f":"'03_Fachmodelle@StZH'!D120","v":"KOOM"},{"$f":"'03_Fachmodelle@StZH'!V120","v":"Anlagenmodell Koordinationsmodell"},{"$nulls":14},"x"]
[{"$f":"'03_Fachmodelle@StZH'!C121","v":"ANL-"},{"$f":"'03_Fachmodelle@StZH'!D121","v":"ARCH"},{"$f":"'03_Fachmodelle@StZH'!U121","v":"Architektur"},{"$nulls":14},"x"]
[{"$f":"'03_Fachmodelle@StZH'!C122","v":"ANL-"},{"$f":"'03_Fachmodelle@StZH'!D122","v":"INGB"},{"$f":"'03_Fachmodelle@StZH'!U122","v":"Ingenieurbau"},{"$nulls":14},"x"]
[{"$f":"'03_Fachmodelle@StZH'!C123","v":"ANL-"},{"$f":"'03_Fachmodelle@StZH'!D123","v":"TRWK"},{"$f":"'03_Fachmodelle@StZH'!U123","v":"Tragwerk"},{"$nulls":14},"x"]
[{"$f":"'03_Fachmodelle@StZH'!C124","v":"ANL-"},{"$f":"'03_Fachmodelle@StZH'!D124","v":"AUSS"},{"$f":"'03_Fachmodelle@StZH'!U124","v":"Aussparungen"},{"$nulls":14},"x"]
[{"$f":"'03_Fachmodelle@StZH'!C125","v":"ANL-"},{"$f":"'03_Fachmodelle@StZH'!D125","v":"SPZN"},{"$f":"'03_Fachmodelle@StZH'!U125","v":"Sperrzonen"},{"$nulls":14},"x"]
[{"$f":"'03_Fachmodelle@StZH'!C126","v":"ANL-"},{"$f":"'03_Fachmodelle@StZH'!D126","v":"EIBT"},{"$f":"'03_Fachmodelle@StZH'!U126","v":"Einbauteile"},{"$nulls":14},"x"]
[{"$f":"'03_Fachmodelle@StZH'!C127","v":"ANL-"},{"$f":"'03_Fachmodelle@StZH'!D127","v":"RAUM"},{"$f":"'03_Fachmodelle@StZH'!U127","v":"Räume"},{"$nulls":14},"x"]
[{"$f":"'03_Fachmodelle@StZH'!C128","v":"ANL-"},{"$f":"'03_Fachmodelle@StZH'!D128","v":"BRAN"},{"$f":"'03_Fachmodelle@StZH'!U128","v":"Brandschutz"},{"$nulls":14},"x"]
[{"$f":"'03_Fachmodelle@StZH'!C129","v":"ANL-"},{"$f":"'03_Fachmodelle@StZH'!D129","v":"AUST"},{"$f":"'03_Fachmodelle@StZH'!U129","v":"Ausstattung"},{"$nulls":14},"x"]
[{"$f":"'03_Fachmodelle@StZH'!C130","v":"ANL-"},{"$f":"'03_Fachmodelle@StZH'!D130","v":"AKUS"},{"$f":"'03_Fachmodelle@StZH'!U130","v":"Akustik"},{"$nulls":14},"x"]
[{"$f":"'03_Fachmodelle@StZH'!C131","v":"ANL-"},{"$f":"'03_Fachmodelle@StZH'!D131","v":"BAPH"},{"$f":"'03_Fachmodelle@StZH'!U131","v":"Bauphysik"},{"$nulls":14},"x"]
[{"$f":"'03_Fachmodelle@StZH'!C132","v":"ANL-"},{"$f":"'03_Fachmodelle@StZH'!D132","v":"VRTK"},{"$f":"'03_Fachmodelle@StZH'!U132","v":"Verfahrenstechnik"},{"$nulls":14},"x"]
[{"$f":"'03_Fachmodelle@StZH'!C133","v":"ANL-"},{"$f":"'03_Fachmodelle@StZH'!D133","v":"LUFT"},{"$f":"'03_Fachmodelle@StZH'!U133","v":"Lüftung"},{"$nulls":14},"x"]
[{"$f":"'03_Fachmodelle@StZH'!C134","v":"ANL-"},{"$f":"'03_Fachmodelle@StZH'!D134","v":"HEIZ"},{"$f":"'03_Fachmodelle@StZH'!U134","v":"Heizung"},{"$nulls":14},"x"]
[{"$f":"'03_Fachmodelle@StZH'!C135","v":"ANL-"},{"$f":"'03_Fachmodelle@StZH'!D135","v":"KUHL"},{"$f":"'03_Fachmodelle@StZH'!U135","v":"Kühlung"},{"$nulls":14},"x"]
[{"$f":"'03_Fachmodelle@StZH'!C136","v":"ANL-"},{"$f":"'03_Fachmodelle@StZH'!D136","v":"SANI"},{"$f":"'03_Fachmodelle@StZH'!U136","v":"Sanitär"},{"$nulls":14},"x"]
[{"$f":"'03_Fachmodelle@StZH'!C137","v":"ANL-"},{"$f":"'03_Fachmodelle@StZH'!D137","v":"GASV"},{"$f":"'03_Fachmodelle@StZH'!U137","v":"Gasversorgung"},{"$nulls":14},"x"]
[{"$f":"'03_Fachmodelle@StZH'!C138","v":"ANL-"},{"$f":"'03_Fachmodelle@StZH'!D138","v":"ENER"},{"$f":"'03_Fachmodelle@StZH'!U138","v":"Energie"},{"$nulls":14},"x"]
[{"$f":"'03_Fachmodelle@StZH'!C139","v":"ANL-"},{"$f":"'03_Fachmodelle@StZH'!D139","v":"ELEK"},{"$f":"'03_Fachmodelle@StZH'!U139","v":"Elektro"},{"$nulls":14},"x"]
[{"$f":"'03_Fachmodelle@StZH'!C140","v":"ANL-"},{"$f":"'03_Fachmodelle@StZH'!D140","v":"TELE"},{"$f":"'03_Fachmodelle@StZH'!U140","v":"Telekommunikation"},{"$nulls":14},"x"]
[{"$f":"'03_Fachmodelle@StZH'!C141","v":"ANL-"},{"$f":"'03_Fachmodelle@StZH'!D141","v":"PLTK"},{"$f":"'03_Fachmodelle@StZH'!U141","v":"Prozessleittechnik"},{"$nulls":14},"x"]
[{"$f":"'03_Fachmodelle@StZH'!C142","v":"ANL-"},{"$f":"'03_Fachmodelle@StZH'!D142","v":"MEST"},{"$f":"'03_Fachmodelle@StZH'!U142","v":"Messtechnik"},{"$nulls":14},"x"]
[{"$f":"'03_Fachmodelle@StZH'!C143","v":"ANL-"},{"$f":"'03_Fachmodelle@StZH'!D143","v":"CHEM"},{"$f":"'03_Fachmodelle@StZH'!U143","v":"Chemie"},{"$nulls":14},"x"]
[{"$f":"'03_Fachmodelle@StZH'!C144","v":"ANL-"},{"$f":"'03_Fachmodelle@StZH'!D144","v":"DMPF"},{"$f":"'03_Fachmodelle@StZH'!U144","v":"Dampf"},{"$nulls":14},"x"]
[{"$f":"'03_Fachmodelle@StZH'!C145","v":"ANL-"},{"$f":"'03_Fachmodelle@StZH'!D145","v":"KKSN"},{"$f":"'03_Fachmodelle@StZH'!U145","v":"Kraftwerk-Kennzeichensystem"},{"$nulls":14},"x"]
[{"$f":"'03_Fachmodelle@StZH'!C146","v":"ANL-"},{"$f":"'03_Fachmodelle@StZH'!D146","v":"AKSN"},{"$f":"'03_Fachmodelle@StZH'!U146","v":"Anlagen-Kennzeichnungssystem"},{"$nulls":14},"x"]
[{"$f":"'03_Fachmodelle@StZH'!C147","v":0},{"$f":"'03_Fachmodelle@StZH'!D147","v":0},{"$f":"'03_Fachmodelle@StZH'!U147","v":0}]
[{"$f":"'03_Fachmodelle@StZH'!C148","v":"KUB-"},{"$f":"'03_Fachmodelle@StZH'!D148","v":"KOOM"},{"$f":"'03_Fachmodelle@StZH'!V148","v":"Kunstbauten Koordinationsmodell"},{"$nulls":15},"x"]
[{"$f":"'03_Fachmodelle@StZH'!C149","v":"KUB-"},{"$f":"'03_Fachmodelle@StZH'!D149","v":"LARS"},{"$f":"'03_Fachmodelle@StZH'!U149","v":"Lärmschutzwand"},{"$nulls":5},"x",{"$nulls":9},"x"]
[{"$f":"'03_Fachmodelle@StZH'!C150","v":"KUB-"},{"$f":"'03_Fachmodelle@StZH'!D150","v":"DURL"},{"$f":"'03_Fachmodelle@StZH'!U150","v":"Durchlass"},{"$nulls":15},"x"]
[{"$f":"'03_Fachmodelle@StZH'!C151","v":"KUB-"},{"$f":"'03_Fachmodelle@StZH'!D151","v":"ENAN"},{"$f":"'03_Fachmodelle@StZH'!U151","v":"Entwässerungsanlage"},{"$nulls":15},"x"]
[{"$f":"'03_Fachmodelle@StZH'!C152","v":"KUB-"},{"$f":"'03_Fachmodelle@StZH'!D152","v":"SPZL"},{"$f":"'03_Fachmodelle@StZH'!U152","v":"Spezialobjekte"},{"$nulls":15},"x"]
[{"$f":"'03_Fachmodelle@StZH'!C153","v":0},{"$f":"'03_Fachmodelle@StZH'!D153","v":0},{"$f":"'03_Fachmodelle@StZH'!U153","v":0}]
[{"$f":"'03_Fachmodelle@StZH'!C154","v":"STM-"},{"$f":"'03_Fachmodelle@StZH'!D154","v":"KOOM"},{"$f":"'03_Fachmodelle@StZH'!V154","v":"Stützmauer Koordinationsmodell"},{"$nulls":16},"x"]
[{"$f":"'03_Fachmodelle@StZH'!C155","v":"STM-"},{"$f":"'03_Fachmodelle@StZH'!D155","v":"BEWE"},{"$f":"'03_Fachmodelle@StZH'!U155","v":"Bewehrung"},{"$nulls":16},"x"]
[{"$f":"'03_Fachmodelle@StZH'!C156","v":"STM-"},{"$f":"'03_Fachmodelle@StZH'!D156","v":"AUSR"},{"$f":"'03_Fachmodelle@StZH'!U156","v":"Ausrüstung"},{"$nulls":16},"x"]
[{"$f":"'03_Fachmodelle@StZH'!C157","v":"STM-"},{"$f":"'03_Fachmodelle@StZH'!D157","v":"SCHA"},{"$f":"'03_Fachmodelle@StZH'!U157","v":"Schalung"},{"$nulls":16},"x"]
[{"$f":"'03_Fachmodelle@StZH'!C158","v":"STM-"},{"$f":"'03_Fachmodelle@StZH'!D158","v":"HILF"},{"$f":"'03_Fachmodelle@StZH'!U158","v":"Hilfskonstruktionen"},{"$nulls":16},"x"]
[{"$f":"'03_Fachmodelle@StZH'!C159","v":0},{"$f":"'03_Fachmodelle@StZH'!D159","v":0},{"$f":"'03_Fachmodelle@StZH'!U159","v":0}]
[{"$f":"'03_Fachmodelle@StZH'!C160","v":"UNT-"},{"$f":"'03_Fachmodelle@StZH'!D160","v":"KOOM"},{"$f":"'03_Fachmodelle@StZH'!U160","v":"Unterführung Koordinationsmodell"},{"$nulls":17},"x"]
[{"$f":"'03_Fachmodelle@StZH'!C161","v":"UNT-"},{"$f":"'03_Fachmodelle@StZH'!D161","v":"BEWE"},{"$f":"'03_Fachmodelle@StZH'!U161","v":"Bewehrung"},{"$nulls":17},"x"]
[{"$f":"'03_Fachmodelle@StZH'!C162","v":"UNT-"},{"$f":"'03_Fachmodelle@StZH'!D162","v":"AUSR"},{"$f":"'03_Fachmodelle@StZH'!U162","v":"Ausrüstung"},{"$nulls":17},"x"]
[{"$f":"'03_Fachmodelle@StZH'!C163","v":"UNT-"},{"$f":"'03_Fachmodelle@StZH'!D163","v":"SCHA"},{"$f":"'03_Fachmodelle@StZH'!U163","v":"Schalung"},{"$nulls":17},"x"]
[{"$f":"'03_Fachmodelle@StZH'!C164","v":"UNT-"},{"$f":"'03_Fachmodelle@StZH'!D164","v":"HILF"},{"$f":"'03_Fachmodelle@StZH'!U164","v":"Hilfskonstruktionen"},{"$nulls":17},"x"]
[{"$f":"'03_Fachmodelle@StZH'!C165","v":0},{"$f":"'03_Fachmodelle@StZH'!D165","v":0},{"$f":"'03_Fachmodelle@StZH'!U165","v":0}]
[{"$f":"'03_Fachmodelle@StZH'!C166","v":"FUB-"},{"$f":"'03_Fachmodelle@StZH'!D166","v":"KOOM"},{"$f":"'03_Fachmodelle@StZH'!U166","v":"Stege und Fussgängerüberführung Koordinationsmodell"},{"$nulls":18},"x"]
[{"$f":"'03_Fachmodelle@StZH'!C167","v":"FUB-"},{"$f":"'03_Fachmodelle@StZH'!D167","v":"BEWE"},{"$f":"'03_Fachmodelle@StZH'!U167","v":"Bewehrung"},{"$nulls":18},"x"]
[{"$f":"'03_Fachmodelle@StZH'!C168","v":"FUB-"},{"$f":"'03_Fachmodelle@StZH'!D168","v":"AUSR"},{"$f":"'03_Fachmodelle@StZH'!U168","v":"Ausrüstung"},{"$nulls":18},"x"]
[{"$f":"'03_Fachmodelle@StZH'!C169","v":"FUB-"},{"$f":"'03_Fachmodelle@StZH'!D169","v":"SCHA"},{"$f":"'03_Fachmodelle@StZH'!U169","v":"Schalung"},{"$nulls":18},"x"]
[{"$f":"'03_Fachmodelle@StZH'!C170","v":"FUB-"},{"$f":"'03_Fachmodelle@StZH'!D170","v":"HILF"},{"$f":"'03_Fachmodelle@StZH'!U170","v":"Hilfskonstruktionen"},{"$nulls":18},"x"]
[{"$f":"'03_Fachmodelle@StZH'!C171","v":0},{"$f":"'03_Fachmodelle@StZH'!D171","v":0},{"$f":"'03_Fachmodelle@StZH'!U171","v":0}]
[{"$f":"'03_Fachmodelle@StZH'!C172","v":"BRU-"},{"$f":"'03_Fachmodelle@StZH'!D172","v":"KOOM"},{"$f":"'03_Fachmodelle@StZH'!U172","v":"Brücken Koordinationsmodell"},{"$nulls":19},"x"]
[{"$f":"'03_Fachmodelle@StZH'!C173","v":"BRU-"},{"$f":"'03_Fachmodelle@StZH'!D173","v":"TRWO"},{"$f":"'03_Fachmodelle@StZH'!U173","v":"Tragwerk Überbau"},{"$nulls":19},"x"]
[{"$f":"'03_Fachmodelle@StZH'!C174","v":"BRU-"},{"$f":"'03_Fachmodelle@StZH'!D174","v":"TRWU"},{"$f":"'03_Fachmodelle@StZH'!U174","v":"Tragwerk Unterbau"},{"$nulls":19},"x"]
[{"$f":"'03_Fachmodelle@StZH'!C175","v":"BRU-"},{"$f":"'03_Fachmodelle@StZH'!D175","v":"VORS"},{"$f":"'03_Fachmodelle@StZH'!U175","v":"Vorspannung"},{"$nulls":19},"x"]
[{"$f":"'03_Fachmodelle@StZH'!C176","v":"BRU-"},{"$f":"'03_Fachmodelle@StZH'!D176","v":"BEWE"},{"$f":"'03_Fachmodelle@StZH'!U176","v":"Bewehrung"},{"$nulls":19},"x"]
[{"$f":"'03_Fachmodelle@StZH'!C177","v":"BRU-"},{"$f":"'03_Fachmodelle@StZH'!D177","v":"AUSR"},{"$f":"'03_Fachmodelle@StZH'!U177","v":"Ausrüstung"},{"$nulls":19},"x"]
[{"$f":"'03_Fachmodelle@StZH'!C178","v":"BRU-"},{"$f":"'03_Fachmodelle@StZH'!D178","v":"SCHA"},{"$f":"'03_Fachmodelle@StZH'!U178","v":"Schalung"},{"$nulls":19},"x"]
[{"$f":"'03_Fachmodelle@StZH'!C179","v":"BRU-"},{"$f":"'03_Fachmodelle@StZH'!D179","v":"HILF"},{"$f":"'03_Fachmodelle@StZH'!U179","v":"Hilfskonstruktionen"},{"$nulls":19},"x"]
[{"$f":"'03_Fachmodelle@StZH'!C180","v":0},{"$f":"'03_Fachmodelle@StZH'!D180","v":0},{"$f":"'03_Fachmodelle@StZH'!U180","v":0}]
[{"$f":"'03_Fachmodelle@StZH'!C181","v":"WAS-"},{"$f":"'03_Fachmodelle@StZH'!D181","v":"KOOM"},{"$f":"'03_Fachmodelle@StZH'!U181","v":"Wasserbauwerke Koordinationsmodell"},{"$nulls":20},"x"]
[{"$f":"'03_Fachmodelle@StZH'!C182","v":"WAS-"},{"$f":"'03_Fachmodelle@StZH'!D182","v":"UFBA"},{"$f":"'03_Fachmodelle@StZH'!U182","v":"Uferbauten"},{"$nulls":20},"x"]
[{"$f":"'03_Fachmodelle@StZH'!C183","v":"WAS-"},{"$f":"'03_Fachmodelle@StZH'!D183","v":"DURL"},{"$f":"'03_Fachmodelle@StZH'!U183","v":"Durchlässe"},{"$nulls":20},"x"]
[{"$f":"'03_Fachmodelle@StZH'!C184","v":0},{"$f":"'03_Fachmodelle@StZH'!D184","v":0},{"$f":"'03_Fachmodelle@StZH'!U184","v":0}]
[{"$f":"'03_Fachmodelle@StZH'!C185","v":"WLK-"},{"$f":"'03_Fachmodelle@StZH'!D185","v":"KOOM"},{"$f":"'03_Fachmodelle@StZH'!U185","v":"Werkleitung Koordinationsmodell"},{"$nulls":21},"x"]
[{"$f":"'03_Fachmodelle@StZH'!C186","v":"WLK-"},{"$f":"'03_Fachmodelle@StZH'!D186","v":"WASS"},{"$f":"'03_Fachmodelle@StZH'!U186","v":"Werkleitung Wasser"},{"$nulls":21},"x"]
[{"$f":"'03_Fachmodelle@StZH'!C187","v":"WLK-"},{"$f":"'03_Fachmodelle@StZH'!D187","v":"ABWA"},{"$f":"'03_Fachmodelle@StZH'!U187","v":"Werkleitung Abwasser"},{"$nulls":21},"x"]
[{"$f":"'03_Fachmodelle@StZH'!C188","v":"WLK-"},{"$f":"'03_Fachmodelle@StZH'!D188","v":"ELEK"},{"$f":"'03_Fachmodelle@StZH'!U188","v":"Werkleitung Elektrizität"},{"$nulls":21},"x"]
[{"$f":"'03_Fachmodelle@StZH'!C189","v":"WLK-"},{"$f":"'03_Fachmodelle@StZH'!D189","v":"GASV"},{"$f":"'03_Fachmodelle@StZH'!U189","v":"Gasversorgung"},{"$nulls":21},"x"]
[{"$f":"'03_Fachmodelle@StZH'!C190","v":"WLK-"},{"$f":"'03_Fachmodelle@StZH'!D190","v":"TELK"},{"$f":"'03_Fachmodelle@StZH'!U190","v":"Werkleitung Telekommunikation"},{"$nulls":21},"x"]
[{"$f":"'03_Fachmodelle@StZH'!C191","v":"WLK-"},{"$f":"'03_Fachmodelle@StZH'!D191","v":"FEWA"},{"$f":"'03_Fachmodelle@StZH'!U191","v":"Werkleitung Fernwärme"},{"$nulls":21},"x"]
[{"$f":"'03_Fachmodelle@StZH'!C192","v":"WLK-"},{"$f":"'03_Fachmodelle@StZH'!D192","v":"OBEL"},{"$f":"'03_Fachmodelle@StZH'!U192","v":"Öffentliche Beleuchtung"},{"$nulls":21},"x"]
[{"$f":"'03_Fachmodelle@StZH'!C193","v":"WLK-"},{"$f":"'03_Fachmodelle@StZH'!D193","v":"VSTA"},{"$f":"'03_Fachmodelle@StZH'!U193","v":"Werkleitung Verkehrssteuerungsanlagen"},{"$nulls":21},"x"]
[{"$f":"'03_Fachmodelle@StZH'!C194","v":"WLK-"},{"$f":"'03_Fachmodelle@StZH'!D194","v":"MOEV"},{"$f":"'03_Fachmodelle@StZH'!U194","v":"Werkleitungen Mobiler öffentlicher Verkehr 600V"},{"$nulls":21},"x"]
[{"$f":"'03_Fachmodelle@StZH'!C195","v":0},{"$f":"'03_Fachmodelle@StZH'!D195","v":0},{"$f":"'03_Fachmodelle@StZH'!U195","v":0}]
[{"$f":"'03_Fachmodelle@StZH'!C196","v":"BZT-"},{"$f":"'03_Fachmodelle@StZH'!D196","v":"KOOM"},{"$f":"'03_Fachmodelle@StZH'!U196","v":"Bauzustände Koordinationsmodel"}]
[{"$f":"'03_Fachmodelle@StZH'!C197","v":"BZT-"},{"$f":"'03_Fachmodelle@StZH'!D197","v":"BPPL"},{"$f":"'03_Fachmodelle@StZH'!U197","v":"Bauphasenplan bzw. Bauperimeter/Baubereich je Etappe"}]
[{"$f":"'03_Fachmodelle@StZH'!C198","v":"BZT-"},{"$f":"'03_Fachmodelle@StZH'!D198","v":"ABSR"},{"$f":"'03_Fachmodelle@StZH'!U198","v":"Abschrankungen"}]
[{"$f":"'03_Fachmodelle@StZH'!C199","v":"BZT-"},{"$f":"'03_Fachmodelle@StZH'!D199","v":"GERS"},{"$f":"'03_Fachmodelle@StZH'!U199","v":"Gerüste"}]
[{"$f":"'03_Fachmodelle@StZH'!C200","v":"BZT-"},{"$f":"'03_Fachmodelle@StZH'!D200","v":"INFL"},{"$f":"'03_Fachmodelle@StZH'!U200","v":"Installationsflächen"}]
[{"$f":"'03_Fachmodelle@StZH'!C201","v":"BZT-"},{"$f":"'03_Fachmodelle@StZH'!D201","v":"QSPR"},{"$f":"'03_Fachmodelle@StZH'!U201","v":"Qualitätssicherungen / Prüfungen"}]
[{"$f":"'03_Fachmodelle@StZH'!C202","v":0},{"$f":"'03_Fachmodelle@StZH'!D202","v":0},{"$f":"'03_Fachmodelle@StZH'!U202","v":0}]
[{"$f":"'03_Fachmodelle@StZH'!C203","v":0},{"$f":"'03_Fachmodelle@StZH'!D203","v":0},{"$f":"'03_Fachmodelle@StZH'!U203","v":0}]
[{"$f":"'03_Fachmodelle@StZH'!C204","v":0},{"$f":"'03_Fachmodelle@StZH'!D204","v":0},{"$f":"'03_Fachmodelle@StZH'!U204","v":0}]
[{"$f":"'03_Fachmodelle@StZH'!C205","v":0},{"$f":"'03_Fachmodelle@StZH'!D205","v":0},{"$f":"'03_Fachmodelle@StZH'!U205","v":0}]
[{"$f":"'03_Fachmodelle@StZH'!C206","v":0},{"$f":"'03_Fachmodelle@StZH'!D206","v":0},{"$f":"'03_Fachmodelle@StZH'!U206","v":0}]
[{"$f":"'03_Fachmodelle@StZH'!C207","v":0},{"$f":"'03_Fachmodelle@StZH'!D207","v":0},{"$f":"'03_Fachmodelle@StZH'!U207","v":0}]
[{"$f":"'03_Fachmodelle@StZH'!C208","v":0},{"$f":"'03_Fachmodelle@StZH'!D208","v":0},{"$f":"'03_Fachmodelle@StZH'!U208","v":0}]
[{"$f":"'03_Fachmodelle@StZH'!C209","v":0},{"$f":"'03_Fachmodelle@StZH'!D209","v":0},{"$f":"'03_Fachmodelle@StZH'!U209","v":0}]
[{"$f":"'03_Fachmodelle@StZH'!C210","v":0},{"$f":"'03_Fachmodelle@StZH'!D210","v":0},{"$f":"'03_Fachmodelle@StZH'!U210","v":0}]
[{"$f":"'03_Fachmodelle@StZH'!C211","v":0},{"$f":"'03_Fachmodelle@StZH'!D211","v":0},{"$f":"'03_Fachmodelle@StZH'!U211","v":0}]
[{"$f":"'03_Fachmodelle@StZH'!C212","v":0},{"$f":"'03_Fachmodelle@StZH'!D212","v":0},{"$f":"'03_Fachmodelle@StZH'!U212","v":0}]
[{"$f":"'03_Fachmodelle@StZH'!C213","v":0},{"$f":"'03_Fachmodelle@StZH'!D213","v":0},{"$f":"'03_Fachmodelle@StZH'!U213","v":0}]
[{"$f":"'03_Fachmodelle@StZH'!C214","v":0},{"$f":"'03_Fachmodelle@StZH'!D214","v":0},{"$f":"'03_Fachmodelle@StZH'!U214","v":0}]
[{"$f":"'03_Fachmodelle@StZH'!C215","v":0},{"$f":"'03_Fachmodelle@StZH'!D215","v":0},{"$f":"'03_Fachmodelle@StZH'!U215","v":0}]
[{"$f":"'03_Fachmodelle@StZH'!C216","v":0},{"$f":"'03_Fachmodelle@StZH'!D216","v":0},{"$f":"'03_Fachmodelle@StZH'!U216","v":0}]
[{"$f":"'03_Fachmodelle@StZH'!C217","v":0},{"$f":"'03_Fachmodelle@StZH'!D217","v":0},{"$f":"'03_Fachmodelle@StZH'!U217","v":0}]
[{"$f":"'03_Fachmodelle@StZH'!C218","v":0},{"$f":"'03_Fachmodelle@StZH'!D218","v":0},{"$f":"'03_Fachmodelle@StZH'!U218","v":0}]
[{"$f":"'03_Fachmodelle@StZH'!C219","v":0},{"$f":"'03_Fachmodelle@StZH'!D219","v":0},{"$f":"'03_Fachmodelle@StZH'!U219","v":0}]
[{"$f":"'03_Fachmodelle@StZH'!C220","v":0},{"$f":"'03_Fachmodelle@StZH'!D220","v":0},{"$f":"'03_Fachmodelle@StZH'!U220","v":0}]
[{"$f":"'03_Fachmodelle@StZH'!C221","v":0},{"$f":"'03_Fachmodelle@StZH'!D221","v":0},{"$f":"'03_Fachmodelle@StZH'!U221","v":0}]
[{"$f":"'03_Fachmodelle@StZH'!C222","v":0},{"$f":"'03_Fachmodelle@StZH'!D222","v":0},{"$f":"'03_Fachmodelle@StZH'!U222","v":0}]
[{"$f":"'03_Fachmodelle@StZH'!C223","v":0},{"$f":"'03_Fachmodelle@StZH'!D223","v":0},{"$f":"'03_Fachmodelle@StZH'!U223","v":0}]
[null,null,{"$f":"'03_Fachmodelle@StZH'!U224","v":0}]
[null,null,{"$f":"'03_Fachmodelle@StZH'!U225","v":0}]
[null,null,{"$f":"'03_Fachmodelle@StZH'!U226","v":0}]
[null,null,{"$f":"'03_Fachmodelle@StZH'!U227","v":0}]
[null,null,{"$f":"'03_Fachmodelle@StZH'!U228","v":0}]
[null,null,{"$f":"'03_Fachmodelle@StZH'!U229","v":0}]
[null,null,{"$f":"'03_Fachmodelle@StZH'!U230","v":0}]
[null,null,{"$f":"'03_Fachmodelle@StZH'!U231","v":0}]
[null,null,{"$f":"'03_Fachmodelle@StZH'!U232","v":0}]
[null,null,{"$f":"'03_Fachmodelle@StZH'!U233","v":0}]
[null,null,{"$f":"'03_Fachmodelle@StZH'!U234","v":0}]
[null,null,{"$f":"'03_Fachmodelle@StZH'!U235","v":0}]
[null,null,{"$f":"'03_Fachmodelle@StZH'!U236","v":0}]
[null,null,{"$f":"'03_Fachmodelle@StZH'!U237","v":0}]
[null,null,{"$f":"'03_Fachmodelle@StZH'!U238","v":0}]
[null,null,{"$f":"'03_Fachmodelle@StZH'!U239","v":0}]
[null,null,{"$f":"'03_Fachmodelle@StZH'!U240","v":0}]
[null,null,{"$f":"'03_Fachmodelle@StZH'!U241","v":0}]
[null,null,{"$f":"'03_Fachmodelle@StZH'!U242","v":0}]
[null,null,{"$f":"'03_Fachmodelle@StZH'!U243","v":0}]
[null,null,{"$f":"'03_Fachmodelle@StZH'!U244","v":0}]
[null,null,{"$f":"'03_Fachmodelle@StZH'!U245","v":0}]
[null,null,{"$f":"'03_Fachmodelle@StZH'!U246","v":0}]
[null,null,{"$f":"'03_Fachmodelle@StZH'!U247","v":0}]
[null,null,{"$f":"'03_Fachmodelle@StZH'!U248","v":0}]
[null,null,{"$f":"'03_Fachmodelle@StZH'!U249","v":0}]
[null,null,{"$f":"'03_Fachmodelle@StZH'!U250","v":0}]
[null,null,{"$f":"'03_Fachmodelle@StZH'!U251","v":0}]
[null,null,{"$f":"'03_Fachmodelle@StZH'!U252","v":0}]
[null,null,{"$f":"'03_Fachmodelle@StZH'!U253","v":0}]
[null,null,{"$f":"'03_Fachmodelle@StZH'!U254","v":0}]
[null,null,{"$f":"'03_Fachmodelle@StZH'!U255","v":0}]
[null,null,{"$f":"'03_Fachmodelle@StZH'!U256","v":0}]
[null,null,{"$f":"'03_Fachmodelle@StZH'!U257","v":0}]
[null,null,{"$f":"'03_Fachmodelle@StZH'!U258","v":0}]
[null,null,{"$f":"'03_Fachmodelle@StZH'!U259","v":0}]
[null,null,{"$f":"'03_Fachmodelle@StZH'!U260","v":0}]
[null,null,{"$f":"'03_Fachmodelle@StZH'!U261","v":0}]
[null,null,{"$f":"'03_Fachmodelle@StZH'!U262","v":0}]
[null,null,{"$f":"'03_Fachmodelle@StZH'!U263","v":0}]
[null,null,{"$f":"'03_Fachmodelle@StZH'!U264","v":0}]
[null,null,{"$f":"'03_Fachmodelle@StZH'!U265","v":0}]

{"sheet":"Erläuterungen Spalten Farben","index":4,"n_rows":8,"n_cols":2,"rows_kept":8}
[1,"Die grünen Spalten gehören zu Matrix an auswahlfeldern die angeboten werden zu einem Fachmodell bzw Fachmodelle die einer DA angeboten werden."]
[2,"Die Oragngenen Spalten sind vorschläge für die 4 Stellige Kürzel die angenommen werden können von den jeweiligen DA's"]
[3,"Die Orangenen Spalten haben den Modellnamen in zwei Teile aufgespalten ur vereinfachten Datenpflege"]
[4,"Der blaue \"Dateiname\" deutet an das es zu einem Teilbereich des Namens der DA gehört"]
[5,"Grüne Felder stehen zur diskussion"]
[6,"Rote Spalte ist neues Freifeld das für manche DA's zur verfügung gestellt wird"]
[7,"Türkise Spalte soll in Zukunft wegfallen"]
[8,"Erledigt"]